Workbook

Sheet V 60+200
A1: TARPTAUTINĖS VARŽYBOS ,,SPRINTO DIENA PANEVĖŽYJE"
K3: 2026-01-03
B4: 60+200 m. mergaitės 2013 m.g. ir jaunesnės | K4: Panevėžys
B6: 1 | C6: bėgimas
A7: Takas | B7: Vardas | C7: Pavardė | D7: Gim. data | E7: Miestas | F7: 60m rez. | G7: Tšk. | H7: 200m rez. | I7: Tšk. | J7: Viso tšk. | K7: Treneriai
A8: 1 | B8: Amelija | C8: Arelytė | D8: 2014- | E8: Panevėžys | F8: 9.16 | J8: =G8+I8 -> 0 | K8: A.Dobregienė
A9: 2 | B9: Beatričė | C9: Dvareckaitė | D9: 2013-03-31 | E9: Alytaus m. | F9: 9.39 | J9: 0 | K9: N.Andreikevičiūtė / E.Sinkevičius
A10: 3 | B10: Gabrielė | C10: Lauruškaitė | D10: 2013-08-21 | E10: Panevėžys | F10: 9.10 | J10: 0 | K10: R. Smilgys
A11: 4 | B11: Saulė | C11: Pošiūnaitė | D11: 2014-05-26 | E11: Švenčionių r. | F11: 9.35 | J11: 0 | K11: R.Turla
A12: 5 | B12: Eglė | C12: Kabelytė | D12: 2014-06-26 | E12: Panevėžys | F12: 9.98 | J12: 0 | K12: G. Krivickas
A13: 6 | B13: Medeina | C13: Žotkevičiūtė | D13: 2014-01-01 | E13: Kaunas | F13: 8.75 | J13: 0 | K13: N.Gedgaudienė
B15: 2 | C15: bėgimas
A16: Takas | B16: Vardas | C16: Pavardė | D16: Gim. data | E16: Miestas | F16: 60m rez. | G16: Tšk. | H16: 200m rez. | I16: Tšk. | J16: Viso tšk. | K16: Treneriai
A17: 1 | B17: Urtė | C17: Žumbakytė | D17: 2013-05-22 | E17: Panevėžys | F17: DNS | J17: =G17+I17 -> 0 | K17: A.Dobregienė
A18: 2 | B18: Polina | C18: Babeško | D18: 2013-12-24 | E18: Klaipėda | F18: 8.85 | J18: 0 | K18: N. Krakiene
A19: 3 | B19: Evija | C19: Smilgytė | D19: 2013-10-30 | E19: Panevėžys | F19: 9.26 | J19: 0 | K19: R. Smilgys, K.Sabalytė
A20: 4 | J20: 0
A21: 5 | B21: Agnė | C21: Kiuraitė | D21: 2014-04-20 | E21: Panevėžys | F21: 10.20 | J21: 0 | K21: G. Krivickas
A22: 6 | B22: Liepa | C22: Mėdziūtė | D22: 2013-02-06 | E22: Panevėžys | F22: 9.92 | J22: 0 | K22: A.Dobregienė
B24: 3 | C24: bėgimas
A25: Takas | B25: Vardas | C25: Pavardė | D25: Gim. data | E25: Miestas | F25: 60m rez. | G25: Tšk. | H25: 200m rez. | I25: Tšk. | J25: Viso tšk. | K25: Treneriai
A26: 1 | B26: Jorūnė | C26: Kazlauskaitė | D26: 2013-07-07 | E26: Biržai | F26: 9.16 | J26: =G26+I26 -> 0 | K26: S.Strelcovas
A27: 2 | B27: Luknė | C27: Baltrušaitytė | D27: 2013-05-03 | E27: Marijampolė | F27: 8.40 | J27: 0 | K27: D. Urbonienė
A28: 3 | B28: Goda | C28: Gumbelevičiūtė | D28: 2013-09-29 | E28: Panevėžys | F28: 9.48 | J28: 0 | K28: R.Jakubauskas
A29: 4 | B29: Urtė | C29: Klimavičiūtė | D29: 2013-04-05 | E29: Prienai | F29: 9.80 | J29: 0 | K29: K. Kuzmickienė
A30: 5 | B30: Estere | C30: Meldrāja | D30: 2016- | E30: Jekabpils | F30: 9.13 | J30: 0 | K30: A.Raubiškis
A31: 6 | B31: Patricija | C31: Šliaužytė | D31: 2013-10-18 | E31: Alytaus m. | F31: DNS | J31: 0 | K31: V. Rasiukevičienė
B33: 4 | C33: bėgimas
A34: Takas | B34: Vardas | C34: Pavardė | D34: Gim. data | E34: Miestas | F34: 60m rez. | G34: Tšk. | H34: 200m rez. | I34: Tšk. | J34: Viso tšk. | K34: Treneriai
A35: 1 | J35: =G35+I35 -> 0
A36: 2 | B36: Iveta | C36: Urbonaitė | D36: 2013-08-02 | E36: Panevėžys | F36: 9.61 | J36: =G36+I36 -> 0 | K36: R.Jakubauskas
A37: 3 | B37: Linda | C37: Jastraboviča | D37: 2014- | E37: Jekabpils | F37: 9.16 | J37: =G37+I37 -> 0 | K37: A.Raubiškis
A38: 4 | B38: Danielė | C38: Kovarskaitė | D38: 2014-04-28 | E38: Panevėžys | F38: 9.67 | J38: =G38+I38 -> 0 | K38: G. Krivickas
A39: 5 | B39: Akvilė | C39: Miknevičiūtė | D39: 2013-12-22 | E39: Alytaus m. | F39: 9.49 | J39: =G39+I39 -> 0 | K39: N.Andreikevičiūtė / E.Sinkevičius
A40: 6 | J40: =G40+I40 -> 0
B42: 5 | C42: bėgimas
A43: Takas | B43: Vardas | C43: Pavardė | D43: Gim. data | E43: Miestas | F43: 60m rez. | G43: Tšk. | H43: 200m rez. | I43: Tšk. | J43: Viso tšk. | K43: Treneriai
A44: 1 | J44: =G44+I44 -> 0
A45: 2 | B45: Kristiāna | C45: Deksne | D45: 2013-09-26 | E45: Mārupe | F45: 8.93 | J45: =G45+I45 -> 0 | K45: A.Blekte
A46: 3 | B46: Viltė | C46: Jurgelionytė | D46: 2014-08-01 | E46: Panevėžys | F46: 9.82 | J46: =G46+I46 -> 0 | K46: G. Krivickas
A47: 4 | B47: Odrija | C47: Kristapsone | D47: 2013-06-01 | E47: Mārupe | F47: 9.13 | J47: =G47+I47 -> 0 | K47: A.Blekte
A48: 5 | B48: Vanesa | C48: Vanaga | D48: 2013-06-07 | E48: Mārupe | F48: 9.43 | J48: =G48+I48 -> 0 | K48: A.Blekte
A49: 6 | J49: =G49+I49 -> 0
B51: 60+200 m. berniukai 2013 m.g. ir jaunesni
B53: 1 | C53: bėgimas
A54: Takas | B54: Vardas | C54: Pavardė | D54: Gim. data | E54: Miestas | F54: 60m rez. | G54: Tšk. | H54: 200m rez. | I54: Tšk. | J54: Viso tšk. | K54: Treneriai
A55: 1 | B55: Herkus | C55: Švedarauskas | D55: 2014-12-29 | E55: Panevėžys | F55: 9.70 | J55: =G55+I55 -> 0 | K55: G. Krivickas
A56: 2 | B56: Danis | C56: Moisejevas | D56: 2014-01-12 | E56: Prienai | F56: 9.39 | J56: 0 | K56: K. Kuzmickienė
A57: 3 | B57: Lukas | C57: Kiela | D57: 2013-11-05 | E57: Panevėžys | F57: 10.13 | J57: 0 | K57: G. Krivickas
A58: 4 | B58: Linards | C58: Jastrabovičš | D58: 2016- | E58: Jekabpils | F58: 9.01 | J58: 0 | K58: A.Raubiškis
A59: 5 | B59: Benediktas | C59: Mateikis | D59: 2013-08-20 | E59: Panevėžys | F59: 10.24 | J59: 0 | K59: G. Krivickas
A60: 6 | B60: Rokas | C60: Bučelis | D60: 2014-06-15 | E60: Švenčionių r. | F60: 9.30 | J60: 0 | K60: R.Turla
B63: 2 | C63: bėgimas
A64: Takas | B64: Vardas | C64: Pavardė | D64: Gim. data | E64: Miestas | F64: 60m rez. | G64: Tšk. | H64: 200m rez. | I64: Tšk. | J64: Viso tšk. | K64: Treneriai
A65: 1 | B65: Motiejus | C65: Bončkus | D65: 2013-08-08 | E65: Biržai | F65: 8.84 | J65: =G65+I65 -> 0 | K65: S.Strelcovas
A66: 2 | B66: Karolis | C66: Šmidtas | D66: 2013-07-20 | E66: Alytaus m. | F66: 8.87 | J66: =G66+I66 -> 0 | K66: V. Šmidtas
A67: 3 | B67: Augustas | C67: Mockus | D67: 2013-07-11 | E67: Marijampolė | F67: 9.93 | J67: =G67+I67 -> 0 | K67: D. Urbonienė
A68: 4 | B68: Simonas | C68: Kuzmickas | D68: 2014-04-24 | E68: Prienai | F68: 9.48 | J68: =G68+I68 -> 0 | K68: K. Kuzmickienė
A69: 5 | B69: Kipras | C69: Karaška | D69: 2013-02-14 | E69: Kaunas | F69: 8.57 | J69: =G69+I69 -> 0 | K69: E.Karaškienė
A70: 6 | B70: Jonas | C70: Garška | D70: 2013-09-04 | E70: Panevėžys | F70: 9.39 | J70: =G70+I70 -> 0 | K70: G. Krivickas

Sheet V 60+200 (2)
A1: TARPTAUTINĖS VARŽYBOS ,,SPRINTO DIENA PANEVĖŽYJE"
K3: 2026-01-03
B4: 60+200 m. mergaitės 2013 m.g. ir jaunesnės | K4: Panevėžys
B6: 1 | C6: bėgimas
A7: Takas | B7: Vardas | C7: Pavardė | D7: Gim. data | E7: Miestas | F7: 60m rez. | G7: Tšk. | H7: 200m rez. | I7: Tšk. | J7: Viso tšk. | K7: Treneriai
A8: 1 | J8: =G8+I8 -> 0
A9: 2 | B9: Viltė | C9: Jurgelionytė | D9: 2014-08-01 | E9: Panevėžys | F9: 9.82 | G9: 20 | H9: 32.78 | J9: =G9+I9 -> 20 | K9: G. Krivickas
A10: 3 | B10: Akvilė | C10: Miknevičiūtė | D10: 2013-12-22 | E10: Alytaus m. | F10: 9.49 | G10: 16 | H10: 32.71 | J10: =G10+I10 -> 16 | K10: N.Andreikevičiūtė / E.Sinkevičius
A11: 4 | B11: Goda | C11: Gumbelevičiūtė | D11: 2013-09-29 | E11: Panevėžys | F11: 9.48 | G11: 15 | H11: 31.54 | J11: =G11+I11 -> 15 | K11: R.Jakubauskas
A12: 5 | B12: Beatričė | C12: Dvareckaitė | D12: 2013-03-31 | E12: Alytaus m. | F12: 9.39 | G12: 13 | H12: 31.18 | J12: =G12+I12 -> 13 | K12: N.Andreikevičiūtė / E.Sinkevičius
A13: 6 | B13: Vanesa | C13: Vanaga | D13: 2013-06-07 | E13: Mārupe | F13: 9.43 | G13: 14 | H13: 30.17 | J13: =G13+I13 -> 14 | K13: A.Blekte
B15: 2 | C15: bėgimas
A16: Takas | B16: Vardas | C16: Pavardė | D16: Gim. data | E16: Miestas | F16: 60m rez. | G16: Tšk. | H16: 200m rez. | I16: Tšk. | J16: Viso tšk. | K16: Treneriai
A17: 1 | B17: Agnė | C17: Kiuraitė | D17: 2014-04-20 | E17: Panevėžys | F17: 10.20 | G17: 23 | H17: 35.77 | J17: =G17+I17 -> 23 | K17: G. Krivickas
A18: 2 | B18: Urtė | C18: Klimavičiūtė | D18: 2013-04-05 | E18: Prienai | F18: 9.80 | G18: 19 | H18: 34.78 | J18: 19 | K18: K. Kuzmickienė
A19: 3 | B19: Saulė | C19: Pošiūnaitė | D19: 2014-05-26 | E19: Švenčionių r. | F19: 9.35 | G19: 12 | H19: 33.49 | J19: 12 | K19: R.Turla
A20: 4 | B20: Evija | C20: Smilgytė | D20: 2013-10-30 | E20: Panevėžys | F20: 9.26 | G20: 11 | H20: 30.95 | J20: 11 | K20: R. Smilgys, K.Sabalytė
A21: 5 | B21: Jorūnė | C21: Kazlauskaitė | D21: 2013-07-07 | E21: Biržai | F21: 9.16 | G21: 9 | H21: 30.32 | J21: 9 | K21: S.Strelcovas
A22: 6 | B22: Linda | C22: Jastraboviča | D22: 2014- | E22: Jekabpils | F22: 9.16 | G22: 10 | H22: 31.27 | J22: 10 | K22: A.Raubiškis
B24: 3 | C24: bėgimas
A25: Takas | B25: Vardas | C25: Pavardė | D25: Gim. data | E25: Miestas | F25: 60m rez. | G25: Tšk. | H25: 200m rez. | I25: Tšk. | J25: Viso tšk. | K25: Treneriai
A26: 1 | B26: Eglė | C26: Kabelytė | D26: 2014-06-26 | E26: Panevėžys | F26: 9.98 | G26: 22 | H26: 34.81 | J26: =G26+I26 -> 22 | K26: G. Krivickas
A27: 2 | B27: Danielė | C27: Kovarskaitė | D27: 2014-04-28 | E27: Panevėžys | F27: 9.67 | G27: 18 | H27: 32.67 | J27: 18 | K27: G. Krivickas
A28: 3 | B28: Amelija | C28: Arelytė | D28: 2014- | E28: Panevėžys | F28: 9.16 | G28: 8 | H28: 31.75 | J28: 8 | K28: A.Dobregienė
A29: 4 | B29: Odrija | C29: Kristapsone | D29: 2013-06-01 | E29: Mārupe | F29: 9.13 | G29: 6 | H29: 30.15 | J29: 6 | K29: A.Blekte
A30: 5 | B30: Gabrielė | C30: Lauruškaitė | D30: 2013-08-21 | E30: Panevėžys | F30: 9.10 | G30: 5 | H30: 30.24 | J30: 5 | K30: R. Smilgys
A31: 6 | B31: Estere | C31: Meldrāja | D31: 2016- | E31: Jekabpils | F31: 9.13 | G31: 6 | H31: 31.02 | J31: 6 | K31: A.Raubiškis
B33: 4 | C33: bėgimas
A34: Takas | B34: Vardas | C34: Pavardė | D34: Gim. data | E34: Miestas | F34: 60m rez. | G34: Tšk. | H34: 200m rez. | I34: Tšk. | J34: Viso tšk. | K34: Treneriai
A35: 1 | B35: Liepa | C35: Mėdziūtė | D35: 2013-02-06 | E35: Panevėžys | F35: 9.92 | G35: 21 | H35: 34.08 | J35: =G35+I35 -> 21 | K35: A.Dobregienė
A36: 2 | B36: Iveta | C36: Urbonaitė | D36: 2013-08-02 | E36: Panevėžys | F36: 9.61 | G36: 17 | H36: 31.97 | J36: 17 | K36: R.Jakubauskas
A37: 3 | B37: Kristiāna | C37: Deksne | D37: 2013-09-26 | E37: Mārupe | F37: 8.93 | G37: 4 | H37: 29.31 | J37: 4 | K37: A.Blekte
A38: 4 | B38: Polina | C38: Babeško | D38: 2013-12-24 | E38: Klaipėda | F38: 8.85 | G38: 3 | H38: 29.23 | J38: 3 | K38: N. Krakiene
A39: 5 | B39: Luknė | C39: Baltrušaitytė | D39: 2013-05-03 | E39: Marijampolė | F39: 8.40 | G39: 1 | H39: 28.27 | J39: 1 | K39: D. Urbonienė
A40: 6 | B40: Medeina | C40: Žotkevičiūtė | D40: 2014-01-01 | E40: Kaunas | F40: 8.75 | G40: 2 | H40: 29.03 | J40: 2 | K40: N.Gedgaudienė
B43: 60+200 m. berniukai 2013 m.g. ir jaunesni
B45: 1 | C45: bėgimas
A46: Takas | B46: Vardas | C46: Pavardė | D46: Gim. data | E46: Miestas | F46: 60m rez. | G46: Tšk. | H46: 200m rez. | I46: Tšk. | J46: Viso tšk. | K46: Treneriai
A47: 1 | B47: Benediktas | C47: Mateikis | D47: 2013-08-20 | E47: Panevėžys | F47: 10.24 | G47: 12 | H47: 34.83 | J47: =G47+I47 -> 12 | K47: G. Krivickas
A48: 2 | B48: Augustas | C48: Mockus | D48: 2013-07-11 | E48: Marijampolė | F48: 9.93 | G48: 10 | H48: 33.80 | J48: 10 | K48: D. Urbonienė
A49: 3 | B49: Simonas | C49: Kuzmickas | D49: 2014-04-24 | E49: Prienai | F49: 9.48 | G49: 8 | H49: 31.64 | J49: 8 | K49: K. Kuzmickienė
A50: 4 | B50: Jonas | C50: Garška | D50: 2013-09-04 | E50: Panevėžys | F50: 9.39 | G50: 7 | H50: 31.01 | J50: 7 | K50: G. Krivickas
A51: 5 | B51: Rokas | C51: Bučelis | D51: 2014-06-15 | E51: Švenčionių r. | F51: 9.30 | G51: 5 | H51: 33.39 | J51: 5 | K51: R.Turla
A52: 6 | B52: Danis | C52: Moisejevas | D52: 2014-01-12 | E52: Prienai | F52: 9.39 | G52: 6 | H52: 31.47 | J52: 6 | K52: K. Kuzmickienė
B54: 2 | C54: bėgimas
A55: Takas | B55: Vardas | C55: Pavardė | D55: Gim. data | E55: Miestas | F55: 60m rez. | G55: Tšk. | H55: 200m rez. | I55: Tšk. | J55: Viso tšk. | K55: Treneriai
A56: 1 | B56: Lukas | C56: Kiela | D56: 2013-11-05 | E56: Panevėžys | F56: 10.13 | G56: 11 | H56: 32.96 | J56: =G56+I56 -> 11 | K56: G. Krivickas
A57: 2 | B57: Herkus | C57: Švedarauskas | D57: 2014-12-29 | E57: Panevėžys | F57: 9.70 | G57: 9 | H57: 32.78 | J57: 9 | K57: G. Krivickas
A58: 3 | B58: Linards | C58: Jastrabovičš | D58: 2016- | E58: Jekabpils | F58: 9.01 | G58: 4 | H58: 31.82 | J58: 4 | K58: A.Raubiškis
A59: 4 | B59: Karolis | C59: Šmidtas | D59: 2013-07-20 | E59: Alytaus m. | F59: 8.87 | G59: 3 | H59: 31.28 | J59: 3 | K59: V. Šmidtas
A60: 5 | B60: Kipras | C60: Karaška | D60: 2013-02-14 | E60: Kaunas | F60: 8.57 | G60: 1 | H60: 28.40 | J60: 1 | K60: E.Karaškienė
A61: 6 | B61: Motiejus | C61: Bončkus | D61: 2013-08-08 | E61: Biržai | F61: 8.84 | G61: 2 | H61: 30.21 | J61: 2 | K61: S.Strelcovas

Sheet V 60+200 (G)
A1: TARPTAUTINĖS VARŽYBOS ,,SPRINTO DIENA PANEVĖŽYJE"
K3: 2026-01-03
B4: 60+200 m. mergaitės 2013 m.g. ir jaunesnės | K4: Panevėžys
A6: Vieta | B6: Vardas | C6: Pavardė | D6: Gim. data | E6: Miestas | F6: 60m rez. | G6: Tšk. | H6: 200m rez. | I6: Tšk. | J6: Viso tšk. | K6: Treneriai
A7: 1 | B7: Luknė | C7: Baltrušaitytė | D7: 2013-05-03 | E7: Marijampolė | F7: 8.40 | G7: 1 | H7: 28.27 | I7: 1 | J7: =G7+I7 -> 2 | K7: D. Urbonienė
A8: 2 | B8: Medeina | C8: Žotkevičiūtė | D8: 2014-01-01 | E8: Kaunas | F8: 8.75 | G8: 2 | H8: 29.03 | I8: 2 | J8: 4 | K8: N.Gedgaudienė
A9: 3 | B9: Polina | C9: Babeško | D9: 2013-12-24 | E9: Klaipėda | F9: 8.85 | G9: 3 | H9: 29.23 | I9: 3 | J9: 6 | K9: N. Krakiene
A10: 4 | B10: Kristiāna | C10: Deksne | D10: 2013-09-26 | E10: Mārupe | F10: 8.93 | G10: 4 | H10: 29.31 | I10: 4 | J10: 8 | K10: A.Blekte
A11: 5 | B11: Odrija | C11: Kristapsone | D11: 2013-06-01 | E11: Mārupe | F11: 9.13 | G11: 6 | H11: 30.15 | I11: 5 | J11: 11 | K11: A.Blekte
A12: 6 | B12: Gabrielė | C12: Lauruškaitė | D12: 2013-08-21 | E12: Panevėžys | F12: 9.10 | G12: 5 | H12: 30.24 | I12: 7 | J12: 12 | K12: R. Smilgys
A13: 7 | B13: Estere | C13: Meldrāja | D13: 2016- | E13: Jekabpils | F13: 9.13 | G13: 6 | H13: 31.02 | I13: 10 | J13: 16 | K13: A.Raubiškis
A14: 8 | B14: Jorūnė | C14: Kazlauskaitė | D14: 2013-07-07 | E14: Biržai | F14: 9.16 | G14: 9 | H14: 30.32 | I14: 8 | J14: 17 | K14: S.Strelcovas
A15: 9 | B15: Vanesa | C15: Vanaga | D15: 2013-06-07 | E15: Mārupe | F15: 9.43 | G15: 14 | H15: 30.17 | I15: 6 | J15: 20 | K15: A.Blekte
A16: 10 | B16: Evija | C16: Smilgytė | D16: 2013-10-30 | E16: Panevėžys | F16: 9.26 | G16: 11 | H16: 30.95 | I16: 9 | J16: 20 | K16: R. Smilgys, K.Sabalytė
A17: 11 | B17: Linda | C17: Jastraboviča | D17: 2014- | E17: Jekabpils | F17: 9.16 | G17: 10 | H17: 31.27 | I17: 12 | J17: 22 | K17: A.Raubiškis
A18: 12 | B18: Amelija | C18: Arelytė | D18: 2014- | E18: Panevėžys | F18: 9.16 | G18: 8 | H18: 31.75 | I18: 14 | J18: 22 | K18: A.Dobregienė
A19: 13 | B19: Beatričė | C19: Dvareckaitė | D19: 2013-03-31 | E19: Alytaus m. | F19: 9.39 | G19: 13 | H19: 31.18 | I19: 11 | J19: 24 | K19: N.Andreikevičiūtė / E.Sinkevičius
A20: 14 | B20: Goda | C20: Gumbelevičiūtė | D20: 2013-09-29 | E20: Panevėžys | F20: 9.48 | G20: 15 | H20: 31.54 | I20: 13 | J20: 28 | K20: R.Jakubauskas
A21: 15 | B21: Saulė | C21: Pošiūnaitė | D21: 2014-05-26 | E21: Švenčionių r. | F21: 9.35 | G21: 12 | H21: 33.49 | I21: 19 | J21: 31 | K21: R.Turla
A22: 16 | B22: Iveta | C22: Urbonaitė | D22: 2013-08-02 | E22: Panevėžys | F22: 9.61 | G22: 17 | H22: 31.97 | I22: 15 | J22: 32 | K22: R.Jakubauskas
A23: 17 | B23: Akvilė | C23: Miknevičiūtė | D23: 2013-12-22 | E23: Alytaus m. | F23: 9.49 | G23: 16 | H23: 32.71 | I23: 17 | J23: 33 | K23: N.Andreikevičiūtė / E.Sinkevičius
A24: 18 | B24: Danielė | C24: Kovarskaitė | D24: 2014-04-28 | E24: Panevėžys | F24: 9.67 | G24: 18 | H24: 32.67 | I24: 16 | J24: 34 | K24: G. Krivickas
A25: 19 | B25: Viltė | C25: Jurgelionytė | D25: 2014-08-01 | E25: Panevėžys | F25: 9.82 | G25: 20 | H25: 32.78 | I25: 18 | J25: 38 | K25: G. Krivickas
A26: 20 | B26: Urtė | C26: Klimavičiūtė | D26: 2013-04-05 | E26: Prienai | F26: 9.80 | G26: 19 | H26: 34.78 | I26: 21 | J26: 40 | K26: K. Kuzmickienė
A27: 21 | B27: Liepa | C27: Mėdziūtė | D27: 2013-02-06 | E27: Panevėžys | F27: 9.92 | G27: 21 | H27: 34.08 | I27: 20 | J27: 41 | K27: A.Dobregienė
A28: 22 | B28: Eglė | C28: Kabelytė | D28: 2014-06-26 | E28: Panevėžys | F28: 9.98 | G28: 22 | H28: 34.81 | I28: 22 | J28: 44 | K28: G. Krivickas
A29: 23 | B29: Agnė | C29: Kiuraitė | D29: 2014-04-20 | E29: Panevėžys | F29: 10.20 | G29: 23 | H29: 35.77 | I29: 23 | J29: 46 | K29: G. Krivickas
B32: 60+200 m. berniukai 2013 m.g. ir jaunesni
A34: Vieta | B34: Vardas | C34: Pavardė | D34: Gim. data | E34: Miestas | F34: 60m rez. | G34: Tšk. | H34: 200m rez. | I34: Tšk. | J34: Viso tšk. | K34: Treneriai
A35: 1 | B35: Kipras | C35: Karaška | D35: 2013-02-14 | E35: Kaunas | F35: 8.57 | G35: 1 | H35: 28.40 | I35: 1 | J35: =G35+I35 -> 2 | K35: E.Karaškienė
A36: 2 | B36: Motiejus | C36: Bončkus | D36: 2013-08-08 | E36: Biržai | F36: 8.84 | G36: 2 | H36: 30.21 | I36: 2 | J36: 4 | K36: S.Strelcovas
A37: 3 | B37: Karolis | C37: Šmidtas | D37: 2013-07-20 | E37: Alytaus m. | F37: 8.87 | G37: 3 | H37: 31.28 | I37: 4 | J37: 7 | K37: V. Šmidtas
A38: 4 | B38: Jonas | C38: Garška | D38: 2013-09-04 | E38: Panevėžys | F38: 9.39 | G38: 7 | H38: 31.01 | I38: 3 | J38: 10 | K38: G. Krivickas
A39: 5 | B39: Linards | C39: Jastrabovičš | D39: 2016- | E39: Jekabpils | F39: 9.01 | G39: 4 | H39: 31.82 | I39: 7 | J39: 11 | K39: A.Raubiškis | L39: =SUM(F39,H39) -> 40.83
A40: 6 | B40: Danis | C40: Moisejevas | D40: 2014-01-12 | E40: Prienai | F40: 9.39 | G40: 6 | H40: 31.47 | I40: 5 | J40: 11 | K40: K. Kuzmickienė | L40: =SUM(F40,H40) -> 40.86
A41: 7 | B41: Simonas | C41: Kuzmickas | D41: 2014-04-24 | E41: Prienai | F41: 9.48 | G41: 8 | H41: 31.64 | I41: 6 | J41: 14 | K41: K. Kuzmickienė
A42: 8 | B42: Rokas | C42: Bučelis | D42: 2014-06-15 | E42: Švenčionių r. | F42: 9.30 | G42: 5 | H42: 33.39 | I42: 10 | J42: 15 | K42: R.Turla
A43: 9 | B43: Herkus | C43: Švedarauskas | D43: 2014-12-29 | E43: Panevėžys | F43: 9.70 | G43: 9 | H43: 32.78 | I43: 8 | J43: 17 | K43: G. Krivickas
A44: 10 | B44: Lukas | C44: Kiela | D44: 2013-11-05 | E44: Panevėžys | F44: 10.13 | G44: 11 | H44: 32.96 | I44: 9 | J44: 20 | K44: G. Krivickas
A45: 11 | B45: Augustas | C45: Mockus | D45: 2013-07-11 | E45: Marijampolė | F45: 9.93 | G45: 10 | H45: 33.80 | I45: 11 | J45: 21 | K45: D. Urbonienė
A46: 12 | B46: Benediktas | C46: Mateikis | D46: 2013-08-20 | E46: Panevėžys | F46: 10.24 | G46: 12 | H46: 34.83 | I46: 12 | J46: 24 | K46: G. Krivickas

Sheet Jnč 60+200
A1: TARPTAUTINĖS VARŽYBOS ,,SPRINTO DIENA PANEVĖŽYJE"
K2: 2026-01-03
K3: Panevėžys
B4: 60+200 m. jaunutės
B6: 1 | C6: bėgimas
A7: Takas | B7: Vardas | C7: Pavardė | D7: Gim. data | E7: Miestas | F7: 60m rez. | G7: Tšk. | H7: 200m rez. | I7: Tšk. | J7: Viso tšk. | K7: Treneriai
A8: 1 | B8: Perlita | C8: Morkūnaitė | D8: 2012-10-05 | E8: Panevėžys | F8: 9.21 | J8: =G8+I8 -> 0 | K8: K.Sabalytė
A9: 2 | B9: Meda | C9: Revotaitė | D9: 2012-04-19 | E9: Panevėžys | F9: 8.56 | J9: =G9+I9 -> 0 | K9: K.Sabalytė
A10: 3 | B10: Vesta | C10: Čerkauskaitė | D10: 2012-09-07 | E10: Panevėžys | F10: 9.00 | J10: 0 | K10: R.Jakubauskas
A11: 4 | B11: Greta | C11: Liaukevičiūtė | D11: 2011-08-14 | E11: Vilnius | F11: 8.25 | J11: 0 | K11: T.Krasauskienė
A12: 5 | B12: Eva | C12: Skauranskaitė | D12: 2011-09-06 | E12: Alytaus m. | F12: 9.84 | J12: 0 | K12: V. Rasiukevičienė
A13: 6 | B13: Anastasiia | C13: Ustymenko | D13: 2012-09-19 | E13: Panevėžys | F13: 9.14 | J13: 0 | K13: G. Krivickas
B15: 2 | C15: bėgimas
A16: Takas | B16: Vardas | C16: Pavardė | D16: Gim. data | E16: Miestas | F16: 60m rez. | G16: Tšk. | H16: 200m rez. | I16: Tšk. | J16: Viso tšk. | K16: Treneriai
A17: 1 | J17: =G17+I17 -> 0
A18: 2 | B18: Patricija | C18: Lukšaitė | D18: 2011-03-18 | E18: Prienai | F18: DNS | J18: 0 | K18: K. Kuzmickienė
A19: 3 | B19: Vaineta | C19: Skaržauskaitė | D19: 2012-12-05 | E19: Panevėžys | F19: 10.25 | J19: =G19+I19 -> 0 | K19: R.Jakubauskas
A20: 4 | B20: Goda | C20: Aržuolaitytė | D20: 2011-07-23 | E20: Rokiškis | F20: 8.29 | J20: 0 | K20: R.Šinkūnas
A21: 5 | B21: Elze | C21: Rasiulytė | D21: 2011-03-01 | E21: Panevėžys | F21: 8.67 | J21: 0 | K21: B.Šaučiūnaitė
A22: 6 | B22: Aistė | C22: Ūsaitytė | D22: 2011-12-10 | E22: Vilnius | F22: 9.21 | J22: 0 | K22: T.Krasauskienė
B24: 3 | C24: bėgimas
A25: Takas | B25: Vardas | C25: Pavardė | D25: Gim. data | E25: Miestas | F25: 60m rez. | G25: Tšk. | H25: 200m rez. | I25: Tšk. | J25: Viso tšk. | K25: Treneriai
A26: 1 | B26: Anastasija | C26: Shvai | D26: 2012-06-27 | E26: Klaipėda | F26: 8.76 | J26: =G26+I26 -> 0 | K26: N. Krakiene
A27: 2 | B27: Urtė | C27: Baranauskaitė | D27: 2011-08-14 | E27: Prienai | F27: 9.38 | J27: =G27+I27 -> 0 | K27: K. Kuzmickienė
A28: 3 | B28: Evita | C28: Papečkytė | D28: 2012-08-29 | E28: Marijampolė | F28: 9.39 | J28: =G28+I28 -> 0 | K28: R. Bindokienė
A29: 4 | B29: Gintarė | C29: Saltanavičiūtė | D29: 2012-04-16 | E29: Vilnius | F29: 8.92 | J29: 0 | K29: T.Krasauskienė
A30: 5 | B30: Elīza | C30: Circene | D30: 2012-09-22 | E30: Mārupe | F30: 8.94 | J30: 0 | K30: A.Blekte
A31: 6 | B31: Aira | C31: Šlekytė | D31: 2011-04-01 | E31: Panevėžys | F31: 9.19 | J31: 0 | K31: G. Krivickas
B33: 4 | C33: bėgimas
A34: Takas | B34: Vardas | C34: Pavardė | D34: Gim. data | E34: Miestas | F34: 60m rez. | G34: Tšk. | H34: 200m rez. | I34: Tšk. | J34: Viso tšk. | K34: Treneriai
A35: 1 | B35: Urtė | C35: Skvireckaitė | D35: 2012-05-11 | E35: Biržai | F35: 9.80 | J35: =G35+I35 -> 0 | K35: S.Strelcovas
A36: 2 | B36: Miglė | C36: Bartusevičiūtė | D36: 2012-11-15 | E36: Prienai | F36: 9.08 | J36: 0 | K36: K. Kuzmickienė
A37: 3 | B37: Kate | C37: Kristapsone | D37: 2011-10-28 | E37: Mārupe | F37: 8.29 | J37: 0 | K37: G.Ļebedevs, A.Blekte
A38: 4 | B38: Giedrė | C38: Januškevičiūtė | D38: 2012-08-18 | E38: Panevėžys | F38: 9.25 | J38: 0 | K38: G. Krivickas
A39: 5 | B39: Deimantė | C39: Čeplinskaitė | D39: 2012-05-31 | E39: Alytaus m. | F39: 9.64 | J39: 0 | K39: V. Rasiukevičienė
A40: 6 | B40: Agnė | C40: Grubinskaitė | D40: 2011-09-08 | E40: Panevėžys | F40: 9.32 | J40: 0 | K40: G. Krivickas
B42: 5 | C42: bėgimas
A43: Takas | B43: Vardas | C43: Pavardė | D43: Gim. data | E43: Miestas | F43: 60m rez. | G43: Tšk. | H43: 200m rez. | I43: Tšk. | J43: Viso tšk. | K43: Treneriai
A44: 1 | B44: Ugnė | C44: Šteinaitė | D44: 2011-09-16 | E44: Panevėžys | F44: 8.68 | J44: =G44+I44 -> 0 | K44: V. Barvičiūtė
A45: 2 | B45: Mėta | C45: Raugevičiūtė | D45: 2012-10-30 | E45: Prienai | F45: 10.19 | J45: 0 | K45: K. Kuzmickienė
A46: 3 | B46: Ignė | C46: Balčiūnaitė | D46: 2012-11-03 | E46: Panevėžys | F46: 9.73 | J46: 0 | K46: A.Dobregienė
A47: 4 | B47: Gaudrė | C47: Volodzkaitė | D47: 2011-07-11 | E47: Kaunas | F47: 9.28 | J47: 0 | K47: N.Gedgaudienė
A48: 5 | B48: Augustė | C48: Uznytė | D48: 2011-08-12 | E48: Klaipėda | F48: 8.61 | J48: 0 | K48: K. Kozlovienė
A49: 6 | B49: Agate | C49: Medeļeva | D49: 2012- | E49: Jekabpils | F49: DNS | J49: 0 | K49: A.Raubiškis
B51: 6 | C51: bėgimas
A52: Takas | B52: Vardas | C52: Pavardė | D52: Gim. data | E52: Miestas | F52: 60m rez. | G52: Tšk. | H52: 200m rez. | I52: Tšk. | J52: Viso tšk. | K52: Treneriai
A53: 1 | B53: Gretė | C53: Baranauskaitė | D53: 2012-11-03 | E53: Panevėžys | F53: 8.76 | J53: =G53+I53 -> 0 | K53: A.Dobregienė
A54: 2 | B54: Smiltė | C54: Griciutė | D54: 2012-10-07 | E54: Panevėžys | F54: 9.48 | J54: 0 | K54: K.Sabalytė
A55: 3 | B55: Ieva | C55: Kreivėnaitė | D55: 2011-05-26 | E55: Prienai | F55: 9.51 | J55: 0 | K55: K. Kuzmickienė
A56: 4 | B56: Melita | C56: Kalvaitytė | D56: 2011-04-07 | E56: Panevėžys | F56: 8.58 | J56: 0 | K56: G. Krivickas
A57: 5 | B57: Ganija | C57: Pocevičiūtė | D57: 2012-10-27 | E57: Kaunas | F57: 8.74 | J57: 0 | K57: N.Gedgaudienė
A58: 6 | B58: Augustė | C58: Gaigalaitė | D58: 2012-08-15 | E58: Panevėžys | F58: 9.71 | J58: 0 | K58: A.Dobregienė
B64: 7 | C64: bėgimas
A65: Takas | B65: Vardas | C65: Pavardė | D65: Gim. data | E65: Miestas | F65: 60m rez. | G65: Tšk. | H65: 200m rez. | I65: Tšk. | J65: Viso tšk. | K65: Treneriai
A66: 1 | J66: =G66+I66 -> 0
A67: 2 | B67: Severija | C67: Šveinauskė | D67: 2012-02-18 | E67: Panevėžys | F67: 8.95 | J67: 0 | K67: K.Sabalytė
A68: 3 | B68: Saulė | C68: Likšaitė | D68: 2011-03-22 | E68: Panevėžys | F68: 8.73 | J68: 0 | K68: R.Jakubauskas
A69: 4 | B69: Ieva | C69: Sadauskaitė | D69: 2011-09-30 | E69: Prienai | F69: 8.74 | J69: 0 | K69: K. Kuzmickienė
A70: 5 | B70: Gabrielė | C70: Gavėnaitė | D70: 2011-05-22 | E70: Alytaus m. | F70: 9.61 | J70: 0 | K70: V. Šmidtas
A71: 6 | B71: Arėja | C71: Rukaitė | D71: 2012-02-16 | E71: Kaunas | F71: 8.67 | J71: 0 | K71: N.Gedgaudienė
B73: 60+200 m. jaunučiai
B75: 1 | C75: bėgimas
A76: Takas | B76: Vardas | C76: Pavardė | D76: Gim. data | E76: Miestas | F76: 60m rez. | G76: Tšk. | H76: 200m rez. | I76: Tšk. | J76: Viso tšk. | K76: Treneriai
A77: 1 | B77: Erikas | C77: Zablackas | D77: 2012-11-09 | E77: Alytaus m. | F77: 8.94 | J77: =G77+I77 -> 0 | K77: O. Vrubliauskas
A78: 2 | B78: Roberts | C78: Vecmuktāns | D78: 2011- | E78: Jekabpils | F78: 8.24 | J78: 0 | K78: A.Raubiškis
A79: 3 | B79: Ąžuolas | C79: Mockus | D79: 2012-04-29 | E79: Marijampolė | F79: 8.64 | J79: 0 | K79: R. Bindokienė
A80: 4 | B80: Nojus | C80: Aponas | D80: 2012-06-01 | E80: Alytaus m. | F80: 8.44 | J80: 0 | K80: A. Klebauskas
A81: 5 | B81: Ignas | C81: Kochanauskas | D81: 2012-01-18 | E81: Panevėžys | F81: 8.31 | J81: 0 | K81: G. Krivickas
A82: 6 | B82: Matas | C82: Cickevičius | D82: 2011-08-29 | E82: Alytaus m. | F82: 8.57 | J82: 0 | K82: O. Vrubliauskas
B87: 2 | C87: bėgimas
A88: Takas | B88: Vardas | C88: Pavardė | D88: Gim. data | E88: Miestas | F88: 60m rez. | G88: Tšk. | H88: 200m rez. | I88: Tšk. | J88: Viso tšk. | K88: Treneriai
A89: 1 | B89: Gustas | C89: Vorobjovas | D89: 2012-03-15 | E89: Panevėžys | F89: 8.46 | J89: =G89+I89 -> 0 | K89: G. Krivickas
A90: 2 | B90: Artiom | C90: Rybak | D90: 2011-04-02 | E90: Švenčionių r. | F90: 7.92 | J90: 0 | K90: G.Michniova
A91: 3 | B91: Pijus | C91: Matulaitis | D91: 2011-07-17 | E91: Prienai | F91: DNS | J91: 0 | K91: K. Kuzmickienė
A92: 4 | B92: Rokas | C92: Janušaitis | D92: 2011-10-15 | E92: Panevėžys | F92: 8.10 | J92: 0 | K92: A.Dobregienė
A93: 5 | B93: Simas | C93: Buslavičius | D93: 2012-07-02 | E93: Alytaus m. | F93: 8.58 | J93: 0 | K93: E.Sinkevičius / N.Andreikevičiūtė
A94: 6 | B94: Simas | C94: Adomėnas | D94: 2012-07-11 | E94: Panevėžys | F94: 8.20 | J94: 0 | K94: K.Sabalytė
B96: 3 | C96: bėgimas
A97: Takas | B97: Vardas | C97: Pavardė | D97: Gim. data | E97: Miestas | F97: 60m rez. | G97: Tšk. | H97: 200m rez. | I97: Tšk. | J97: Viso tšk. | K97: Treneriai
A98: 1 | B98: Kristupas | C98: Lučka | D98: 2012-02-25 | E98: Panevėžys | F98: 8.54 | J98: =G98+I98 -> 0 | K98: A.Dobregienė
A99: 2 | B99: Eidenas | C99: Vitkauskas | D99: 2012-04-21 | E99: Alytaus m. | F99: 9.13 | J99: =G99+I99 -> 0 | K99: O. Vrubliauskas
A100: 3 | B100: Kristers | C100: Piliens | D100: 2011- | E100: Jekabpils | F100: 7.84 | J100: =G100+I100 -> 0 | K100: A.Raubiškis
A101: 4 | B101: Gustas | C101: Masys | D101: 2011-06-17 | E101: Panevėžys | F101: 8.85 | J101: =G101+I101 -> 0 | K101: K.Sabalytė
A102: 5 | B102: Ridas | C102: Jančauskas | D102: 2011-03-18 | E102: Kaunas | F102: 7.47 | J102: =G102+I102 -> 0 | K102: E. Dilys
A103: 6 | B103: Matas | C103: Bielevičius | D103: 2011-09-28 | E103: Alytaus m. | F103: 8.26 | J103: =G103+I103 -> 0 | K103: E.Sinkevičius / N.Andreikevičiūtė
B105: 4 | C105: bėgimas
A106: Takas | B106: Vardas | C106: Pavardė | D106: Gim. data | E106: Miestas | F106: 60m rez. | G106: Tšk. | H106: 200m rez. | I106: Tšk. | J106: Viso tšk. | K106: Treneriai
A107: 1 | J107: =G107+I107 -> 0
A108: 2 | B108: Matas | C108: Vincekas | D108: 2011-11-15 | E108: Prienai | F108: 8.87 | J108: =G108+I108 -> 0 | K108: K. Kuzmickienė
A109: 3 | B109: Arnas | C109: Norus | D109: 2012-06-01 | E109: Alytaus m. | F109: 8.25 | J109: =G109+I109 -> 0 | K109: N.Andreikevičiūtė / E.Sinkevičius
A110: 4 | B110: Danielius | C110: Armokas | D110: 2011-01-02 | E110: Panevėžys | F110: 7.49 | J110: =G110+I110 -> 0 | K110: A.Dobregienė
A111: 5 | B111: Nedas | C111: Makselė | D111: 2012-02-11 | E111: Alytaus m. | F111: 9.39 | J111: =G111+I111 -> 0 | K111: E.Sinkevičius / N.Andreikevičiūtė
A112: 6 | B112: Rapolas | C112: Dudėnas | D112: 2011-08-10 | E112: Panevėžys | F112: 8.18 | J112: =G112+I112 -> 0 | K112: K.Sabalytė

Sheet Jnč 60+200 (2)
A1: TARPTAUTINĖS VARŽYBOS ,,SPRINTO DIENA PANEVĖŽYJE"
K2: 2026-01-03
K3: Panevėžys
B4: 60+200 m. jaunutės
B6: 1 | C6: bėgimas
A7: Takas | B7: Vardas | C7: Pavardė | D7: Gim. data | E7: Miestas | F7: 60m rez. | G7: Tšk. | H7: 200m rez. | I7: Tšk. | J7: Viso tšk. | K7: Treneriai
A8: 1
A9: 2 | B9: Urtė | C9: Skvireckaitė | D9: 2012-05-11 | E9: Biržai | F9: 9.80 | G9: 35 | H9: 33.17 | J9: =G9+I9 -> 35 | K9: S.Strelcovas
A10: 3 | B10: Evita | C10: Papečkytė | D10: 2012-08-29 | E10: Marijampolė | F10: 9.39 | G10: 28 | H10: 31.84 | J10: =G10+I10 -> 28 | K10: R. Bindokienė
A11: 4 | B11: Urtė | C11: Baranauskaitė | D11: 2011-08-14 | E11: Prienai | F11: 9.38 | G11: 27 | H11: 34.29 | J11: =G11+I11 -> 27 | K11: K. Kuzmickienė
A12: 5 | B12: Gaudrė | C12: Volodzkaitė | D12: 2011-07-11 | E12: Kaunas | F12: 9.28 | G12: 25 | H12: 30.54 | J12: =G12+I12 -> 25 | K12: N.Gedgaudienė
A13: 6 | B13: Agnė | C13: Grubinskaitė | D13: 2011-09-08 | E13: Panevėžys | F13: 9.32 | G13: 26 | H13: 31.61 | J13: =G13+I13 -> 26 | K13: G. Krivickas
B15: 2 | C15: bėgimas
A16: Takas | B16: Vardas | C16: Pavardė | D16: Gim. data | E16: Miestas | F16: 60m rez. | G16: Tšk. | H16: 200m rez. | I16: Tšk. | J16: Viso tšk. | K16: Treneriai
A17: 1 | B17: Mėta | C17: Raugevičiūtė | D17: 2012-10-30 | E17: Prienai | F17: 10.19 | G17: 37 | H17: 36.49 | J17: =G17+I17 -> 37 | K17: K. Kuzmickienė
A18: 2 | B18: Ignė | C18: Balčiūnaitė | D18: 2012-11-03 | E18: Panevėžys | F18: 9.73 | G18: 34 | H18: 32.49 | J18: 34 | K18: A.Dobregienė
A19: 3 | B19: Giedrė | C19: Januškevičiūtė | D19: 2012-08-18 | E19: Panevėžys | F19: 9.25 | G19: 24 | H19: 31.83 | J19: 24 | K19: G. Krivickas
A20: 4 | B20: Aistė | C20: Ūsaitytė | D20: 2011-12-10 | E20: Vilnius | F20: 9.21 | G20: 22 | H20: 31.42 | J20: 22 | K20: T.Krasauskienė
A21: 5 | B21: Aira | C21: Šlekytė | D21: 2011-04-01 | E21: Panevėžys | F21: 9.19 | G21: 21 | H21: 30.89 | J21: 21 | K21: G. Krivickas
A22: 6 | B22: Perlita | C22: Morkūnaitė | D22: 2012-10-05 | E22: Panevėžys | F22: 9.21 | G22: 22 | H22: 31.35 | J22: 22 | K22: K.Sabalytė
B24: 3 | C24: bėgimas
A25: Takas | B25: Vardas | C25: Pavardė | D25: Gim. data | E25: Miestas | F25: 60m rez. | G25: Tšk. | H25: 200m rez. | I25: Tšk. | J25: Viso tšk. | K25: Treneriai
A26: 1 | B26: Eva | C26: Skauranskaitė | D26: 2011-09-06 | E26: Alytaus m. | F26: 9.84 | G26: 36 | H26: 33.07 | J26: =G26+I26 -> 36 | K26: V. Rasiukevičienė
A27: 2 | B27: Augustė | C27: Gaigalaitė | D27: 2012-08-15 | E27: Panevėžys | F27: 9.71 | G27: 33 | H27: 33.61 | J27: 33 | K27: A.Dobregienė
A28: 3 | B28: Anastasiia | C28: Ustymenko | D28: 2012-09-19 | E28: Panevėžys | F28: 9.14 | G28: 20 | H28: 32.31 | J28: 20 | K28: G. Krivickas
A29: 4 | B29: Miglė | C29: Bartusevičiūtė | D29: 2012-11-15 | E29: Prienai | F29: 9.08 | G29: 19 | H29: 31.21 | J29: 19 | K29: K. Kuzmickienė
A30: 5 | B30: Severija | C30: Šveinauskė | D30: 2012-02-18 | E30: Panevėžys | F30: 8.95 | G30: 17 | H30: 29.97 | J30: 17 | K30: K.Sabalytė
A31: 6 | B31: Vesta | C31: Čerkauskaitė | D31: 2012-09-07 | E31: Panevėžys | F31: 9.00 | G31: 18 | H31: 30.40 | J31: 18 | K31: R.Jakubauskas
B32: 4 | C32: bėgimas
A33: Takas | B33: Vardas | C33: Pavardė | D33: Gim. data | E33: Miestas | F33: 60m rez. | G33: Tšk. | H33: 200m rez. | I33: Tšk. | J33: Viso tšk. | K33: Treneriai
A34: 1 | B34: Vaineta | C34: Skaržauskaitė | D34: 2012-12-05 | E34: Panevėžys | F34: 10.25 | G34: 38 | H34: 36.07 | J34: =G34+I34 -> 38 | K34: R.Jakubauskas
A35: 2 | B35: Deimantė | C35: Čeplinskaitė | D35: 2012-05-31 | E35: Alytaus m. | F35: 9.64 | G35: 32 | H35: 32.93 | J35: 32 | K35: V. Rasiukevičienė
A36: 3 | B36: Elīza | C36: Circene | D36: 2012-09-22 | E36: Mārupe | F36: 8.94 | G36: 16 | H36: 29.25 | J36: 16 | K36: A.Blekte
A37: 4 | B37: Gintarė | C37: Saltanavičiūtė | D37: 2012-04-16 | E37: Vilnius | F37: 8.92 | G37: 15 | H37: 30.60 | J37: 15 | K37: T.Krasauskienė
A38: 5 | B38: Anastasija | C38: Shvai | D38: 2012-06-27 | E38: Klaipėda | F38: 8.76 | G38: 13 | H38: 28.41 | J38: 13 | K38: N. Krakiene
A39: 6 | B39: Gretė | C39: Baranauskaitė | D39: 2012-11-03 | E39: Panevėžys | F39: 8.76 | G39: 14 | H39: 29.18 | J39: 14 | K39: A.Dobregienė
B41: 5 | C41: bėgimas
A42: Takas | B42: Vardas | C42: Pavardė | D42: Gim. data | E42: Miestas | F42: 60m rez. | G42: Tšk. | H42: 200m rez. | I42: Tšk. | J42: Viso tšk. | K42: Treneriai
A44: 2 | B44: Gabrielė | C44: Gavėnaitė | D44: 2011-05-22 | E44: Alytaus m. | F44: 9.61 | G44: 31 | H44: 33.31 | J44: =G44+I44 -> 31 | K44: V. Šmidtas
A45: 3 | B45: Ieva | C45: Sadauskaitė | D45: 2011-09-30 | E45: Prienai | F45: 8.74 | G45: 11 | H45: 29.84 | J45: =G45+I45 -> 11 | K45: K. Kuzmickienė
A46: 4 | B46: Ganija | C46: Pocevičiūtė | D46: 2012-10-27 | E46: Kaunas | F46: 8.74 | G46: 11 | H46: 29.41 | J46: =G46+I46 -> 11 | K46: N.Gedgaudienė
A47: 5 | B47: Ugnė | C47: Šteinaitė | D47: 2011-09-16 | E47: Panevėžys | F47: 8.68 | G47: 9 | H47: 29.50 | J47: =G47+I47 -> 9 | K47: V. Barvičiūtė
A48: 6 | B48: Saulė | C48: Likšaitė | D48: 2011-03-22 | E48: Panevėžys | F48: 8.73 | G48: 10 | H48: 28.98 | J48: =G48+I48 -> 10 | K48: R.Jakubauskas
B50: 6 | C50: bėgimas
A51: Takas | B51: Vardas | C51: Pavardė | D51: Gim. data | E51: Miestas | F51: 60m rez. | G51: Tšk. | H51: 200m rez. | I51: Tšk. | J51: Viso tšk. | K51: Treneriai
A53: 2 | B53: Ieva | C53: Kreivėnaitė | D53: 2011-05-26 | E53: Prienai | F53: 9.51 | G53: 30 | H53: 31.49 | J53: =G53+I53 -> 30 | K53: K. Kuzmickienė
A54: 3 | B54: Arėja | C54: Rukaitė | D54: 2012-02-16 | E54: Kaunas | F54: 8.67 | G54: 7 | H54: 29.67 | J54: =G54+I54 -> 7 | K54: N.Gedgaudienė
A55: 4 | B55: Elze | C55: Rasiulytė | D55: 2011-03-01 | E55: Panevėžys | F55: 8.67 | G55: 7 | H55: 28.55 | J55: =G55+I55 -> 7 | K55: B.Šaučiūnaitė
A56: 5 | B56: Melita | C56: Kalvaitytė | D56: 2011-04-07 | E56: Panevėžys | F56: 8.58 | G56: 5 | H56: 27.93 | J56: =G56+I56 -> 5 | K56: G. Krivickas
A57: 6 | B57: Augustė | C57: Uznytė | D57: 2011-08-12 | E57: Klaipėda | F57: 8.61 | G57: 6 | H57: 29.75 | J57: =G57+I57 -> 6 | K57: K. Kozlovienė
B64: 7 | C64: bėgimas
A65: Takas | B65: Vardas | C65: Pavardė | D65: Gim. data | E65: Miestas | F65: 60m rez. | G65: Tšk. | H65: 200m rez. | I65: Tšk. | J65: Viso tšk. | K65: Treneriai
A67: 2 | B67: Smiltė | C67: Griciutė | D67: 2012-10-07 | E67: Panevėžys | F67: 9.48 | G67: 29 | H67: 32.51 | J67: =G67+I67 -> 29 | K67: K.Sabalytė
A68: 3 | B68: Meda | C68: Revotaitė | D68: 2012-04-19 | E68: Panevėžys | F68: 8.56 | G68: 4 | H68: 28.64 | J68: =G68+I68 -> 4 | K68: K.Sabalytė
A69: 4 | B69: Kate | C69: Kristapsone | D69: 2011-10-28 | E69: Mārupe | F69: 8.29 | G69: 3 | H69: 26.81 | J69: =G69+I69 -> 3 | K69: G.Ļebedevs, A.Blekte
A70: 5 | B70: Greta | C70: Liaukevičiūtė | D70: 2011-08-14 | E70: Vilnius | F70: 8.25 | G70: 1 | H70: 27.06 | J70: =G70+I70 -> 1 | K70: T.Krasauskienė
A71: 6 | B71: Goda | C71: Aržuolaitytė | D71: 2011-07-23 | E71: Rokiškis | F71: 8.29 | G71: 2 | H71: 29.44 | J71: =G71+I71 -> 2 | K71: R.Šinkūnas
B73: 60+200 m. jaunučiai
B75: 1 | C75: bėgimas
A76: Takas | B76: Vardas | C76: Pavardė | D76: Gim. data | E76: Miestas | F76: 60m rez. | G76: Tšk. | H76: 200m rez. | I76: Tšk. | J76: Viso tšk. | K76: Treneriai
A77: 1 | B77: Nedas | C77: Makselė | D77: 2012-02-11 | E77: Alytaus m. | F77: 9.39 | G77: 22 | H77: 32.06 | J77: =G77+I77 -> 22 | K77: E.Sinkevičius / N.Andreikevičiūtė
A78: 2 | B78: Erikas | C78: Zablackas | D78: 2012-11-09 | E78: Alytaus m. | F78: 8.94 | G78: 20 | H78: 30.74 | J78: =G78+I78 -> 20 | K78: O. Vrubliauskas
A79: 3 | B79: Simas | C79: Buslavičius | D79: 2012-07-02 | E79: Alytaus m. | F79: 8.58 | G79: 16 | H79: 28.61 | J79: =G79+I79 -> 16 | K79: E.Sinkevičius / N.Andreikevičiūtė
A80: 4 | B80: Matas | C80: Cickevičius | D80: 2011-08-29 | E80: Alytaus m. | F80: 8.57 | G80: 15 | H80: 28.78 | J80: =G80+I80 -> 15 | K80: O. Vrubliauskas
A81: 5 | B81: Gustas | C81: Vorobjovas | D81: 2012-03-15 | E81: Panevėžys | F81: 8.46 | G81: 13 | H81: 27.60 | J81: =G81+I81 -> 13 | K81: G. Krivickas
A82: 6 | B82: Kristupas | C82: Lučka | D82: 2012-02-25 | E82: Panevėžys | F82: 8.54 | G82: 14 | H82: DNS | K82: A.Dobregienė
B84: 2 | C84: bėgimas
A85: Takas | B85: Vardas | C85: Pavardė | D85: Gim. data | E85: Miestas | F85: 60m rez. | G85: Tšk. | H85: 200m rez. | I85: Tšk. | J85: Viso tšk. | K85: Treneriai
A86: 1 | B86: Eidenas | C86: Vitkauskas | D86: 2012-04-21 | E86: Alytaus m. | F86: 9.13 | G86: 21 | H86: 31.49 | J86: =G86+I86 -> 21 | K86: O. Vrubliauskas
A87: 2 | B87: Matas | C87: Vincekas | D87: 2011-11-15 | E87: Prienai | F87: 8.87 | G87: 19 | H87: 29.76 | J87: 19 | K87: K. Kuzmickienė
A88: 3 | B88: Nojus | C88: Aponas | D88: 2012-06-01 | E88: Alytaus m. | F88: 8.44 | G88: 12 | H88: 28.18 | J88: 12 | K88: A. Klebauskas
A89: 4 | B89: Ignas | C89: Kochanauskas | D89: 2012-01-18 | E89: Panevėžys | F89: 8.31 | G89: 11 | H89: 27.17 | J89: 11 | K89: G. Krivickas
A90: 5 | B90: Arnas | C90: Norus | D90: 2012-06-01 | E90: Alytaus m. | F90: 8.25 | G90: 9 | H90: 27.37 | J90: 9 | K90: N.Andreikevičiūtė / E.Sinkevičius
A91: 6 | B91: Matas | C91: Bielevičius | D91: 2011-09-28 | E91: Alytaus m. | F91: 8.26 | G91: 10 | H91: 26.95 | J91: 10 | K91: E.Sinkevičius / N.Andreikevičiūtė
B93: 3 | C93: bėgimas
A94: Takas | B94: Vardas | C94: Pavardė | D94: Gim. data | E94: Miestas | F94: 60m rez. | G94: Tšk. | H94: 200m rez. | I94: Tšk. | J94: Viso tšk. | K94: Treneriai
A95: 1 | J95: =G95+I95 -> 0
A96: 2 | B96: Gustas | C96: Masys | D96: 2011-06-17 | E96: Panevėžys | F96: 8.85 | G96: 18 | H96: 29.57 | J96: 18 | K96: K.Sabalytė
A97: 3 | B97: Roberts | C97: Vecmuktāns | D97: 2011- | E97: Jekabpils | F97: 8.24 | G97: 8 | H97: 27.41 | J97: 8 | K97: A.Raubiškis
A98: 4 | B98: Simas | C98: Adomėnas | D98: 2012-07-11 | E98: Panevėžys | F98: 8.20 | G98: 7 | H98: 27.49 | J98: 7 | K98: K.Sabalytė
A99: 5 | B99: Rokas | C99: Janušaitis | D99: 2011-10-15 | E99: Panevėžys | F99: 8.10 | G99: 5 | H99: 27.28 | J99: 5 | K99: A.Dobregienė
A100: 6 | B100: Rapolas | C100: Dudėnas | D100: 2011-08-10 | E100: Panevėžys | F100: 8.18 | G100: 6 | H100: 26.02 | J100: 6 | K100: K.Sabalytė
B102: 4 | C102: bėgimas
A103: Takas | B103: Vardas | C103: Pavardė | D103: Gim. data | E103: Miestas | F103: 60m rez. | G103: Tšk. | H103: 200m rez. | I103: Tšk. | J103: Viso tšk. | K103: Treneriai
A105: 2 | B105: Ąžuolas | C105: Mockus | D105: 2012-04-29 | E105: Marijampolė | F105: 8.64 | G105: 17 | H105: 29.35 | J105: =G105+I105 -> 17 | K105: R. Bindokienė
A106: 3 | B106: Artiom | C106: Rybak | D106: 2011-04-02 | E106: Švenčionių r. | F106: 7.92 | G106: 4 | H106: 26.31 | J106: =G106+I106 -> 4 | K106: G.Michniova
A107: 4 | B107: Kristers | C107: Piliens | D107: 2011- | E107: Jekabpils | F107: 7.84 | G107: 3 | H107: 25.19 | J107: =G107+I107 -> 3 | K107: A.Raubiškis
A108: 5 | B108: Ridas | C108: Jančauskas | D108: 2011-03-18 | E108: Kaunas | F108: 7.47 | G108: 1 | H108: 24.23 | J108: =G108+I108 -> 1 | K108: E. Dilys
A109: 6 | B109: Danielius | C109: Armokas | D109: 2011-01-02 | E109: Panevėžys | F109: 7.49 | G109: 2 | H109: 24.53 | J109: =G109+I109 -> 2 | K109: A.Dobregienė

Sheet Jnč 60+200 (G)
A1: TARPTAUTINĖS VARŽYBOS ,,SPRINTO DIENA PANEVĖŽYJE"
K2: 2026-01-03
K3: Panevėžys
B4: 60+200 m. jaunutės
A6: Vieta | B6: Vardas | C6: Pavardė | D6: Gim. data | E6: Miestas | F6: 60m rez. | G6: Tšk. | H6: 200m rez. | I6: Tšk. | J6: Viso tšk. | K6: Treneriai
A7: 1 | B7: Greta | C7: Liaukevičiūtė | D7: 2011-08-14 | E7: Vilnius | F7: 8.25 | G7: 1 | H7: 27.06 | I7: 2 | J7: =G7+I7 -> 3 | K7: T.Krasauskienė
A8: 2 | B8: Kate | C8: Kristapsone | D8: 2011-10-28 | E8: Mārupe | F8: 8.29 | G8: 3 | H8: 26.81 | I8: 1 | J8: 4 | K8: G.Ļebedevs, A.Blekte
A9: 3 | B9: Melita | C9: Kalvaitytė | D9: 2011-04-07 | E9: Panevėžys | F9: 8.58 | G9: 5 | H9: 27.93 | I9: 3 | J9: 8 | K9: G. Krivickas
A10: 4 | B10: Meda | C10: Revotaitė | D10: 2012-04-19 | E10: Panevėžys | F10: 8.56 | G10: 4 | H10: 28.64 | I10: 6 | J10: 10 | K10: K.Sabalytė
A11: 5 | B11: Elze | C11: Rasiulytė | D11: 2011-03-01 | E11: Panevėžys | F11: 8.67 | G11: 7 | H11: 28.55 | I11: 5 | J11: 12 | K11: B.Šaučiūnaitė
A12: 6 | B12: Goda | C12: Aržuolaitytė | D12: 2011-07-23 | E12: Rokiškis | F12: 8.29 | G12: 2 | H12: 29.44 | I12: 11 | J12: 13 | K12: R.Šinkūnas
A13: 7 | B13: Anastasija | C13: Shvai | D13: 2012-06-27 | E13: Klaipėda | F13: 8.76 | G13: 13 | H13: 28.41 | I13: 4 | J13: 17 | K13: N. Krakiene | L13: =SUM(F13,H13) -> 37.17
A14: 8 | B14: Saulė | C14: Likšaitė | D14: 2011-03-22 | E14: Panevėžys | F14: 8.73 | G14: 10 | H14: 28.98 | I14: 7 | J14: 17 | K14: R.Jakubauskas | L14: 37.71
A15: 9 | B15: Arėja | C15: Rukaitė | D15: 2012-02-16 | E15: Kaunas | F15: 8.67 | G15: 7 | H15: 29.67 | I15: 13 | J15: 20 | K15: N.Gedgaudienė | L15: =SUM(F15,H15) -> 38.34
A16: 10 | B16: Augustė | C16: Uznytė | D16: 2011-08-12 | E16: Klaipėda | F16: 8.61 | G16: 6 | H16: 29.75 | I16: 14 | J16: 20 | K16: K. Kozlovienė | L16: =SUM(F16,H16) -> 38.36
A17: 11 | B17: Ganija | C17: Pocevičiūtė | D17: 2012-10-27 | E17: Kaunas | F17: 8.74 | G17: 11 | H17: 29.41 | I17: 10 | J17: 21 | K17: N.Gedgaudienė | L17: =SUM(F17,H17) -> 38.15
A18: 12 | B18: Ugnė | C18: Šteinaitė | D18: 2011-09-16 | E18: Panevėžys | F18: 8.68 | G18: 9 | H18: 29.50 | I18: 12 | J18: 21 | K18: V. Barvičiūtė | L18: 38.18
A19: 13 | B19: Gretė | C19: Baranauskaitė | D19: 2012-11-03 | E19: Panevėžys | F19: 8.76 | G19: 14 | H19: 29.18 | I19: 8 | J19: 22 | K19: A.Dobregienė
A20: 14 | B20: Elīza | C20: Circene | D20: 2012-09-22 | E20: Mārupe | F20: 8.94 | G20: 16 | H20: 29.25 | I20: 9 | J20: 25 | K20: A.Blekte
A21: 15 | B21: Ieva | C21: Sadauskaitė | D21: 2011-09-30 | E21: Prienai | F21: 8.74 | G21: 11 | H21: 29.84 | I21: 15 | J21: 26 | K21: K. Kuzmickienė
A22: 16 | B22: Severija | C22: Šveinauskė | D22: 2012-02-18 | E22: Panevėžys | F22: 8.95 | G22: 17 | H22: 29.97 | I22: 16 | J22: 33 | K22: K.Sabalytė
A23: 17 | B23: Gintarė | C23: Saltanavičiūtė | D23: 2012-04-16 | E23: Vilnius | F23: 8.92 | G23: 15 | H23: 30.60 | I23: 19 | J23: 34 | K23: T.Krasauskienė
A24: 18 | B24: Vesta | C24: Čerkauskaitė | D24: 2012-09-07 | E24: Panevėžys | F24: 9.00 | G24: 18 | H24: 30.40 | I24: 17 | J24: 35 | K24: R.Jakubauskas
A25: 19 | B25: Miglė | C25: Bartusevičiūtė | D25: 2012-11-15 | E25: Prienai | F25: 9.08 | G25: 19 | H25: 31.21 | I25: 21 | J25: 40 | K25: K. Kuzmickienė
A26: 20 | B26: Aira | C26: Šlekytė | D26: 2011-04-01 | E26: Panevėžys | F26: 9.19 | G26: 21 | H26: 30.89 | I26: 20 | J26: 41 | K26: G. Krivickas
A27: 21 | B27: Gaudrė | C27: Volodzkaitė | D27: 2011-07-11 | E27: Kaunas | F27: 9.28 | G27: 25 | H27: 30.54 | I27: 18 | J27: 43 | K27: N.Gedgaudienė
A28: 22 | B28: Perlita | C28: Morkūnaitė | D28: 2012-10-05 | E28: Panevėžys | F28: 9.21 | G28: 22 | H28: 31.35 | I28: 22 | J28: 44 | K28: K.Sabalytė
A29: 23 | B29: Aistė | C29: Ūsaitytė | D29: 2011-12-10 | E29: Vilnius | F29: 9.21 | G29: 22 | H29: 31.42 | I29: 23 | J29: 45 | K29: T.Krasauskienė
A30: 24 | B30: Anastasiia | C30: Ustymenko | D30: 2012-09-19 | E30: Panevėžys | F30: 9.14 | G30: 20 | H30: 32.31 | I30: 28 | J30: 48 | K30: G. Krivickas
A31: 25 | B31: Giedrė | C31: Januškevičiūtė | D31: 2012-08-18 | E31: Panevėžys | F31: 9.25 | G31: 24 | H31: 31.83 | I31: 26 | J31: 50 | K31: G. Krivickas | L31: =SUM(F31,H31) -> 41.08
A32: 26 | B32: Agnė | C32: Grubinskaitė | D32: 2011-09-08 | E32: Panevėžys | F32: 9.32 | G32: 26 | H32: 31.61 | I32: 25 | J32: 51 | K32: G. Krivickas
A33: 27 | B33: Ieva | C33: Kreivėnaitė | D33: 2011-05-26 | E33: Prienai | F33: 9.51 | G33: 30 | H33: 31.49 | I33: 24 | J33: 54 | K33: K. Kuzmickienė
A34: 28 | B34: Evita | C34: Papečkytė | D34: 2012-08-29 | E34: Marijampolė | F34: 9.39 | G34: 28 | H34: 31.84 | I34: 27 | J34: 55 | K34: R. Bindokienė
A35: 29 | B35: Smiltė | C35: Griciutė | D35: 2012-10-07 | E35: Panevėžys | F35: 9.48 | G35: 29 | H35: 32.51 | I35: 30 | J35: 59 | K35: K.Sabalytė
A36: 30 | B36: Ignė | C36: Balčiūnaitė | D36: 2012-11-03 | E36: Panevėžys | F36: 9.73 | G36: 34 | H36: 32.49 | I36: 29 | J36: 63 | K36: A.Dobregienė | L36: =SUM(F36,H36) -> 42.22
A37: 31 | B37: Deimantė | C37: Čeplinskaitė | D37: 2012-05-31 | E37: Alytaus m. | F37: 9.64 | G37: 32 | H37: 32.93 | I37: 31 | J37: 63 | K37: V. Rasiukevičienė | L37: =SUM(F37,H37) -> 42.57
A38: 32 | B38: Urtė | C38: Baranauskaitė | D38: 2011-08-14 | E38: Prienai | F38: 9.38 | G38: 27 | H38: 34.29 | I38: 36 | J38: 63 | K38: K. Kuzmickienė | L38: =SUM(F38,H38) -> 43.67
A39: 33 | B39: Gabrielė | C39: Gavėnaitė | D39: 2011-05-22 | E39: Alytaus m. | F39: 9.61 | G39: 31 | H39: 33.31 | I39: 34 | J39: 65 | K39: V. Šmidtas
A40: 34 | B40: Eva | C40: Skauranskaitė | D40: 2011-09-06 | E40: Alytaus m. | F40: 9.84 | G40: 36 | H40: 33.07 | I40: 32 | J40: 68 | K40: V. Rasiukevičienė | L40: =SUM(F40,H40) -> 42.91
A41: 35 | B41: Urtė | C41: Skvireckaitė | D41: 2012-05-11 | E41: Biržai | F41: 9.80 | G41: 35 | H41: 33.17 | I41: 33 | J41: 68 | K41: S.Strelcovas | L41: =SUM(F41,H41) -> 42.97
A42: 36 | B42: Augustė | C42: Gaigalaitė | D42: 2012-08-15 | E42: Panevėžys | F42: 9.71 | G42: 33 | H42: 33.61 | I42: 35 | J42: 68 | K42: A.Dobregienė | L42: =SUM(F42,H42) -> 43.32
A43: 37 | B43: Vaineta | C43: Skaržauskaitė | D43: 2012-12-05 | E43: Panevėžys | F43: 10.25 | G43: 38 | H43: 36.07 | I43: 37 | J43: 75 | K43: R.Jakubauskas | L43: =SUM(F43,H43) -> 46.32
A44: 38 | B44: Mėta | C44: Raugevičiūtė | D44: 2012-10-30 | E44: Prienai | F44: 10.19 | G44: 37 | H44: 36.49 | I44: 38 | J44: 75 | K44: K. Kuzmickienė | L44: =SUM(F44,H44) -> 46.68
B46: 60+200 m. jaunučiai
A48: Vieta | B48: Vardas | C48: Pavardė | D48: Gim. data | E48: Miestas | F48: 60m rez. | G48: Tšk. | H48: 200m rez. | I48: Tšk. | J48: Viso tšk. | K48: Treneriai
A49: 1 | B49: Ridas | C49: Jančauskas | D49: 2011-03-18 | E49: Kaunas | F49: 7.47 | G49: 1 | H49: 24.23 | I49: 1 | J49: =G49+I49 -> 2 | K49: E. Dilys
A50: 2 | B50: Danielius | C50: Armokas | D50: 2011-01-02 | E50: Panevėžys | F50: 7.49 | G50: 2 | H50: 24.53 | I50: 2 | J50: 4 | K50: A.Dobregienė
A51: 3 | B51: Kristers | C51: Piliens | D51: 2011- | E51: Jekabpils | F51: 7.84 | G51: 3 | H51: 25.19 | I51: 3 | J51: 6 | K51: A.Raubiškis
A52: 4 | B52: Artiom | C52: Rybak | D52: 2011-04-02 | E52: Švenčionių r. | F52: 7.92 | G52: 4 | H52: 26.31 | I52: 5 | J52: 9 | K52: G.Michniova
A53: 5 | B53: Rapolas | C53: Dudėnas | D53: 2011-08-10 | E53: Panevėžys | F53: 8.18 | G53: 6 | H53: 26.02 | I53: 4 | J53: 10 | K53: K.Sabalytė
A54: 6 | B54: Rokas | C54: Janušaitis | D54: 2011-10-15 | E54: Panevėžys | F54: 8.10 | G54: 5 | H54: 27.28 | I54: 8 | J54: 13 | K54: A.Dobregienė
A55: 7 | B55: Matas | C55: Bielevičius | D55: 2011-09-28 | E55: Alytaus m. | F55: 8.26 | G55: 10 | H55: 26.95 | I55: 6 | J55: 16 | K55: E.Sinkevičius / N.Andreikevičiūtė
A56: 8 | B56: Ignas | C56: Kochanauskas | D56: 2012-01-18 | E56: Panevėžys | F56: 8.31 | G56: 11 | H56: 27.17 | I56: 7 | J56: 18 | K56: G. Krivickas | L56: =SUM(F56,H56) -> 35.48
A57: 9 | B57: Arnas | C57: Norus | D57: 2012-06-01 | E57: Alytaus m. | F57: 8.25 | G57: 9 | H57: 27.37 | I57: 9 | J57: 18 | K57: N.Andreikevičiūtė / E.Sinkevičius | L57: 35.62
A58: 10 | B58: Roberts | C58: Vecmuktāns | D58: 2011- | E58: Jekabpils | F58: 8.24 | G58: 8 | H58: 27.41 | I58: 10 | J58: 18 | K58: A.Raubiškis | L58: =SUM(F58,H58) -> 35.65
A59: 11 | B59: Simas | C59: Adomėnas | D59: 2012-07-11 | E59: Panevėžys | F59: 8.20 | G59: 7 | H59: 27.49 | I59: 11 | J59: 18 | K59: K.Sabalytė | L59: =SUM(F59,H59) -> 35.69
A60: 12 | B60: Gustas | C60: Vorobjovas | D60: 2012-03-15 | E60: Panevėžys | F60: 8.46 | G60: 13 | H60: 27.60 | I60: 12 | J60: 25 | K60: G. Krivickas | L60: =SUM(F60,H60) -> 36.06
A61: 13 | B61: Nojus | C61: Aponas | D61: 2012-06-01 | E61: Alytaus m. | F61: 8.44 | G61: 12 | H61: 28.18 | I61: 13 | J61: 25 | K61: A. Klebauskas | L61: 36.62
A62: 14 | B62: Simas | C62: Buslavičius | D62: 2012-07-02 | E62: Alytaus m. | F62: 8.58 | G62: 16 | H62: 28.61 | I62: 14 | J62: 30 | K62: E.Sinkevičius / N.Andreikevičiūtė | L62: 37.19
A63: 15 | B63: Matas | C63: Cickevičius | D63: 2011-08-29 | E63: Alytaus m. | F63: 8.57 | G63: 15 | H63: 28.78 | I63: 15 | J63: 30 | K63: O. Vrubliauskas | L63: 37.35
A64: 16 | B64: Ąžuolas | C64: Mockus | D64: 2012-04-29 | E64: Marijampolė | F64: 8.64 | G64: 17 | H64: 29.35 | I64: 16 | J64: 33 | K64: R. Bindokienė
A65: 17 | B65: Gustas | C65: Masys | D65: 2011-06-17 | E65: Panevėžys | F65: 8.85 | G65: 18 | H65: 29.57 | I65: 17 | J65: 35 | K65: K.Sabalytė
A66: 18 | B66: Matas | C66: Vincekas | D66: 2011-11-15 | E66: Prienai | F66: 8.87 | G66: 19 | H66: 29.76 | I66: 18 | J66: 37 | K66: K. Kuzmickienė
A67: 19 | B67: Erikas | C67: Zablackas | D67: 2012-11-09 | E67: Alytaus m. | F67: 8.94 | G67: 20 | H67: 30.74 | I67: 19 | J67: 39 | K67: O. Vrubliauskas
A68: 20 | B68: Eidenas | C68: Vitkauskas | D68: 2012-04-21 | E68: Alytaus m. | F68: 9.13 | G68: 21 | H68: 31.49 | I68: 20 | J68: 41 | K68: O. Vrubliauskas
A69: 21 | B69: Nedas | C69: Makselė | D69: 2012-02-11 | E69: Alytaus m. | F69: 9.39 | G69: 22 | H69: 32.06 | I69: 21 | J69: 43 | K69: E.Sinkevičius / N.Andreikevičiūtė
B70: Kristupas | C70: Lučka | D70: 2012-02-25 | E70: Panevėžys | F70: 8.54 | G70: 14 | H70: DNS | K70: A.Dobregienė

Sheet Jn 60+200
A1: TARPTAUTINĖS VARŽYBOS ,,SPRINTO DIENA PANEVĖŽYJE"
K2: 2026-01-03
K3: Panevėžys
B4: 60+200 m. jaunės
B6: 1 | C6: bėgimas
A7: Takas | B7: Vardas | C7: Pavardė | D7: Gim. data | E7: Miestas | F7: 60m rez. | G7: Tšk. | H7: 200m rez. | I7: Tšk. | J7: Viso tšk. | K7: Treneriai
A8: 1 | B8: Amelija | C8: Ivanauskaitė | D8: 2009-06-28 | E8: Alytaus m. | F8: 8.29 | J8: =G8+I8 -> 0 | K8: V. Šmidtas
A9: 2 | B9: Darija | C9: Folkmanaitė | D9: 2009-01-27 | E9: Panevėžys | F9: 8.75 | J9: 0 | K9: A.Dobregienė
A10: 3 | B10: Evelina | C10: Klimavičiūtė | D10: 2010-09-23 | E10: Alytaus m. | F10: 9.08 | J10: 0 | K10: V. Šmidtas
A11: 4 | B11: Madara | C11: Vaivare | D11: 2010-06-27 | E11: Mārupe | F11: 9.13 | J11: 0 | K11: G.Ļebedevs, A.Blekte
A12: 5 | B12: Paulina | C12: Bakytė | D12: 2010-04-29 | E12: Alytaus m. | F12: 8.68 | J12: 0 | K12: V. Šmidtas
A13: 6 | B13: Ūla | C13: Ptakauskaitė | D13: 2010-08-06 | E13: Kaunas | F13: 8.25 | J13: 0 | K13: E. Dilys
B15: 2 | C15: bėgimas
A16: Takas | B16: Vardas | C16: Pavardė | D16: Gim. data | E16: Miestas | F16: 60m rez. | G16: Tšk. | H16: 200m rez. | I16: Tšk. | J16: Viso tšk. | K16: Treneriai
A17: 1 | B17: Amelija | C17: Dit Ebef | D17: 2010-12-09 | E17: Vilnius | F17: 8.40 | J17: =G17+I17 -> 0 | K17: T.Krasauskienė
A18: 2 | B18: Darija | C18: Matukaitytė | D18: 2009-11-22 | E18: Panevėžys-Kėdainiai | F18: 9.01 | J18: 0 | K18: R.Jakubauskas, R. Sakalauskienė
A19: 3 | B19: Marija | C19: Spūdytė | D19: 2009-08-10 | E19: Alytaus m. | F19: 8.68 | J19: 0 | K19: V. Šmidtas
A20: 4 | B20: Evita | C20: Vidzėnaitė | D20: 2010-11-19 | E20: Panevėžys | F20: 9.13 | J20: 0 | K20: A.Dobregienė
A21: 5 | B21: Paulina | C21: Pociūnaitė | D21: 2010-06-02 | E21: Klaipėda | F21: 8.51 | J21: 0 | K21: N. Krakiene/ L.Gruzdienė
A22: 6 | B22: Uršulė | C22: Šveinauskė | D22: 2009-04-21 | E22: Panevėžys | F22: 8.57 | J22: 0 | K22: R.Jakubauskas, R. Smilgys
B24: 3 | C24: bėgimas
A25: Takas | B25: Vardas | C25: Pavardė | D25: Gim. data | E25: Miestas | F25: 60m rez. | G25: Tšk. | H25: 200m rez. | I25: Tšk. | J25: Viso tšk. | K25: Treneriai
A26: 1 | B26: Annika | C26: Zvirbule | D26: 2010-11-30 | E26: Mārupe | F26: 8.36 | J26: =G26+I26 -> 0 | K26: G.Ļebedevs, A.Blekte
A27: 2 | B27: Eivilė | C27: Paškevičiūtė | D27: 2010-11-17 | E27: Vilnius | F27: 8.59 | J27: 0 | K27: T.Krasauskienė
A28: 3 | B28: Felicita | C28: Ausekle | D28: 2009-09-29 | E28: Mārupe | F28: 8.79 | J28: 0 | K28: G.Ļebedevs, A.Blekte
A29: 4 | B29: Mėja | C29: Žebrytė | D29: 2010-05-18 | E29: Klaipėda | F29: 8.51 | J29: 0 | K29: K. Kozlovienė
A30: 5 | B30: Rugilė | C30: Tupalskytė | D30: 2009-08-10 | E30: Panevėžys | F30: 9.45 | J30: 0 | K30: A.Dobregienė
A31: 6 | B31: Urtė | C31: Rutkauskaitė | D31: 2009-11-08 | E31: Alytaus m. | F31: 9.93 | J31: 0 | K31: V. Šmidtas
B32: 4 | C32: bėgimas
A33: Takas | B33: Vardas | C33: Pavardė | D33: Gim. data | E33: Miestas | F33: 60m rez. | G33: Tšk. | H33: 200m rez. | I33: Tšk. | J33: Viso tšk. | K33: Treneriai
A34: 1 | B34: Emilija | C34: Celiešiūtė | D34: 2010-09-28 | E34: Panevėžys | F34: 8.23 | J34: =G34+I34 -> 0 | K34: A.Dobregienė
A35: 2 | B35: Atėnė | C35: Gūdmantaitė | D35: 2009-04-20 | E35: Kaunas | F35: 8.43 | J35: =G35+I35 -> 0 | K35: J.Čižauskas
A36: 3 | B36: Gustė | C36: Janušauskaitė | D36: 2010-05-27 | E36: Panevėžys | F36: 8.39 | J36: =G36+I36 -> 0 | K36: G. Krivickas
A37: 4 | B37: Melānija | C37: Teicāne | D37: 2010- | E37: Jekabpils | F37: DNS | J37: 0 | K37: A.Raubiškis
A38: 5 | B38: Rugilė | C38: Saltanavičiūtė | D38: 2010-01-22 | E38: Vilnius | F38: 8.73 | J38: 0 | K38: T.Krasauskienė
A39: 6 | B39: Urtė | C39: Juškaitė | D39: 2010-02-10 | E39: Kaunas | F39: 8.76 | J39: 0 | K39: J.Čižauskas
B41: 5 | C41: bėgimas
A42: Takas | B42: Vardas | C42: Pavardė | D42: Gim. data | E42: Miestas | F42: 60m rez. | G42: Tšk. | H42: 200m rez. | I42: Tšk. | J42: Viso tšk. | K42: Treneriai
A43: 1 | J43: =G43+I43 -> 0
A44: 2 | B44: Elza | C44: Šembele | D44: 2009-12-29 | E44: Ryga | F44: 9.11 | J44: 0 | K44: A.Saņņikovs
A45: 3 | B45: Augustė | C45: Stragytė | D45: 2010-10-15 | E45: Kaunas | F45: 8.38 | J45: =G45+I45 -> 0 | K45: N. Gedgaudienė
A46: 4 | B46: Milana | C46: Herasimenko | D46: 2010-12-09 | E46: Klaipėda | F46: 8.33 | J46: 0 | K46: N. Krakiene
A47: 5 | B47: Vanesa | C47: Blekaitytė | D47: 2010-07-18 | E47: Marijampolė | F47: 8.73 | J47: =G47+I47 -> 0 | K47: R. Bindokienė
A48: 6 | B48: Ugnė | C48: Margelytė | D48: 2009-09-04 | E48: Alytaus m. | F48: 8.79 | J48: =G48+I48 -> 0 | K48: O. Vrubliauskas
B50: 6 | C50: bėgimas
A51: Takas | B51: Vardas | C51: Pavardė | D51: Gim. data | E51: Miestas | F51: 60m rez. | G51: Tšk. | H51: 200m rez. | I51: Tšk. | J51: Viso tšk. | K51: Treneriai
A52: 1 | J52: =G52+I52 -> 0
A53: 2 | B53: Aurėja | C53: Mackevičiūtė | D53: 2009-07-28 | E53: Panevėžys | F53: 8.65 | J53: 0 | K53: R.Jakubauskas
A54: 3 | B54: Kotryna | C54: Černokauskaitė | D54: 2010-01-21 | E54: Vilnius | F54: 8.83 | J54: =G54+I54 -> 0 | K54: T.Krasauskiemė
A55: 4 | B55: Aušrinė | C55: Markauskaitė | D55: 2009-01-20 | E55: Panevėžys | F55: 9.32 | J55: =G55+I55 -> 0 | K55: A.Dobregienė
A56: 5 | B56: Paulina | C56: Vorobjovaitė | D56: 2009-07-11 | E56: Alytaus m. | F56: 8.92 | J56: =G56+I56 -> 0 | K56: V. Šmidtas
A57: 6 | B57: Liepa | C57: Mėlynytė | D57: 2010-07-07 | E57: Panevėžys | F57: 9.54 | J57: =G57+I57 -> 0 | K57: A.Dobregienė
B63: 7 | C63: bėgimas
A64: Takas | B64: Vardas | C64: Pavardė | D64: Gim. data | E64: Miestas | F64: 60m rez. | G64: Tšk. | H64: 200m rez. | I64: Tšk. | J64: Viso tšk. | K64: Treneriai
A65: 1 | J65: =G65+I65 -> 0
A66: 2 | B66: Austėja | C66: Ožalaitė | D66: 2010-01-12 | E66: Alytaus m. | F66: 8.90 | J66: =G66+I66 -> 0 | K66: V. Šmidtas
A67: 3 | B67: Emilija | C67: Kropaitė | D67: 2009-05-17 | E67: Panevėžys | F67: 7.92 | J67: =G67+I67 -> 0 | K67: R.Jakubauskas
A68: 4 | B68: Lėja | C68: Milkevičiūtė | D68: 2009-12-02 | E68: Alytaus m. | F68: 8.22 | J68: =G68+I68 -> 0 | K68: V. Šmidtas
A69: 5 | B69: Nikoleta | C69: Pantu | D69: 2010-02-28 | E69: Klaipėda | F69: 8.55 | J69: =G69+I69 -> 0 | K69: N. Krakiene
A70: 6 | B70: Smiltė | C70: Paukštytė | D70: 2009-11-20 | E70: Panevėžys | F70: 8.10 | J70: =G70+I70 -> 0 | K70: A.Dobregienė
B72: 60+200 m. jauniai
B74: 1 | C74: bėgimas
A75: Takas | B75: Vardas | C75: Pavardė | D75: Gim. data | E75: Miestas | F75: 60m rez. | G75: Tšk. | H75: 200m rez. | I75: Tšk. | J75: Viso tšk. | K75: Treneriai
A76: 1 | B76: Tomas | C76: Alijošaitis | D76: 2009-09-11 | E76: Panevėžys | F76: 7.62 | J76: =G76+I76 -> 0 | K76: V. Barvičiūtė
A77: 2 | B77: Danielius | C77: Butkus | D77: 2009-04-30 | E77: Alytaus m. | F77: 7.96 | J77: 0 | K77: V. Šmidtas
A78: 3 | B78: Karolis | C78: Janevičius | D78: 2009-01-21 | E78: Panevėžys | F78: 8.35 | J78: 0 | K78: R.Jakubauskas
A79: 4 | B79: Joris | C79: Maževičius | D79: 2010-02-02 | E79: Alytaus m. | F79: 8.51 | J79: 0 | K79: O. Vrubliauskas
A80: 5 | B80: Vakaris | C80: Paulauskas | D80: 2010-01-13 | E80: Panevėžys | F80: 7.99 | J80: 0 | K80: K.Sabalytė
A81: 6 | B81: Justas | C81: Venckus | D81: 2009-01-15 | E81: Vilnius | F81: 7.69 | J81: 0 | K81: L.Juchnevičienė
B83: 2 | C83: bėgimas
A84: Takas | B84: Vardas | C84: Pavardė | D84: Gim. data | E84: Miestas | F84: 60m rez. | G84: Tšk. | H84: 200m rez. | I84: Tšk. | J84: Viso tšk. | K84: Treneriai
A85: 1 | B85: Emilis | C85: Usovas | D85: 2009-12-11 | E85: Švenčionių r. | F85: 7.34 | J85: =G85+I85 -> 0 | K85: R.Turla
A86: 2 | B86: Almantas | C86: Arelis | D86: 2009-08-03 | E86: Panevėžys | F86: 7.76 | J86: =G86+I86 -> 0 | K86: A.Dobregienė
A87: 3 | B87: Ugnius | C87: Janušauskas | D87: 2009-06-17 | E87: Panevėžys | F87: 7.37 | J87: =G87+I87 -> 0 | K87: R. Smilgys
A88: 4 | B88: Lukas | C88: Mažukna | D88: 2009-06-27 | E88: Panevėžys | F88: 7.55 | J88: 0 | K88: R.Jakubauskas
A89: 5 | B89: Ugnius | C89: Platūkis | D89: 2010-12-17 | E89: Alytaus m. | F89: 8.28 | J89: =G89+I89 -> 0 | K89: V. Šmidtas
A90: 6 | B90: Nedas | C90: Dagys | D90: 2010-07-07 | E90: Panevėžys | F90: 7.51 | J90: 0 | K90: R.Jakubauskas
B94: 3 | C94: bėgimas
A95: Takas | B95: Vardas | C95: Pavardė | D95: Gim. data | E95: Miestas | F95: 60m rez. | G95: Tšk. | H95: 200m rez. | I95: Tšk. | J95: Viso tšk. | K95: Treneriai
A96: 1 | B96: Augustas | C96: Vaičekauskas | D96: 2008-10-08 | E96: Panevėžys-Kauno r. | F96: 7.85 | J96: =G96+I96 -> 0 | K96: R.Jakubauskas, A.Starkevičius
A97: 2 | B97: Jurgis | C97: Milašauskas | D97: 2009-11-09 | E97: Marijampolė | F97: 8.34 | J97: 0 | K97: R. Bindokienė
A98: 3 | B98: Julius | C98: Aukštikalnis | D98: 2009-12-17 | E98: Panevėžys | F98: 7.41 | J98: 0 | K98: R.Jakubauskas
A99: 4 | B99: Dovidas | C99: Drabavičius | D99: 2009-06-04 | E99: Švenčionių r. | F99: 8.05 | J99: 0 | K99: R.Turla
A100: 5 | B100: Adas | C100: Jaras | D100: 2010-10-27 | E100: Marijampolė | F100: 8.45 | J100: 0 | K100: R. Bindokienė
A101: 6 | B101: Pijus | C101: Prakapavičius | D101: 2010-08-22 | E101: Alytaus m. | F101: 8.63 | J101: 0 | K101: E.Sinkevičius / N.Andreikevičiūtė
B103: 4 | C103: bėgimas
A104: Takas | B104: Vardas | C104: Pavardė | D104: Gim. data | E104: Miestas | F104: 60m rez. | G104: Tšk. | H104: 200m rez. | I104: Tšk. | J104: Viso tšk. | K104: Treneriai
A105: 1 | J105: =G105+I105 -> 0 | K105: V. Barvičiūtė
A106: 2 | B106: Gustas | C106: Miliauskas | D106: 2009-12-24 | E106: Alytaus m. | F106: 7.46 | J106: =G106+I106 -> 0 | K106: V. Šmidtas
A107: 3 | B107: Pauls | C107: Baltgailis | D107: 2010-05-11 | E107: Ryga | F107: 7.66 | J107: =G107+I107 -> 0 | K107: I.Eversone
A108: 4 | B108: Matas | C108: Garška | D108: 2010-03-18 | E108: Panevėžys | F108: 8.15 | J108: =G108+I108 -> 0 | K108: G. Krivickas
A109: 5 | B109: Oskaras | C109: Jegelevičius | D109: 2009-08-14 | E109: Alytaus m. | F109: 8.35 | J109: =G109+I109 -> 0 | K109: O. Vrubliauskas
A110: 6 | B110: Martynas | C110: Nikliauza | D110: 2009-03-11 | E110: Marijampolė | F110: 7.83 | J110: =G110+I110 -> 0 | K110: R. Bindokienė
B112: 5 | C112: bėgimas
A113: Takas | B113: Vardas | C113: Pavardė | D113: Gim. data | E113: Miestas | F113: 60m rez. | G113: Tšk. | H113: 200m rez. | I113: Tšk. | J113: Viso tšk. | K113: Treneriai
A114: 1 | B114: Ignas | C114: Bukaveckas | D114: 2010-04-16 | E114: Alytaus m. | F114: 8.02 | J114: =G114+I114 -> 0 | K114: V. Šmidtas
A115: 2 | B115: Dovydas | C115: Jančys | D115: 2010-01-19 | E115: Panevėžys | F115: 8.31 | J115: 0 | K115: B.Šaučiūnaitė
A116: 3 | B116: Gerhards | C116: Slavinskis | D116: 2009-07-28 | E116: Mārupe | F116: 7.92 | J116: 0 | K116: G.Ļebedevs, A.Blekte
A117: 4 | B117: Aretas | C117: Gasiūnas | D117: 2009-01-26 | E117: Panevėžys | F117: 7.39 | J117: 0 | K117: A.Dobregienė
A118: 5 | B118: Rapolas | C118: Juknius | D118: 2009-02-02 | E118: Panevėžys | F118: 7.38 | J118: 0 | K118: R.Jakubauskas
A119: 6 | B119: Aleksei | C119: Kotok | D119: 2010-06-13 | E119: Klaipėda | F119: 7.48 | J119: 0 | K119: N. Krakiene
B125: 6 | C125: bėgimas
A126: Takas | B126: Vardas | C126: Pavardė | D126: Gim. data | E126: Miestas | F126: 60m rez. | G126: Tšk. | H126: 200m rez. | I126: Tšk. | J126: Viso tšk. | K126: Treneriai
A127: 1 | J127: =G127+I127 -> 0
A128: 2 | B128: Jokūbas | C128: Kaminskas | D128: 2010-12-27 | E128: Panevėžys | F128: 7.77 | J128: =G128+I128 -> 0 | K128: A.Dobregienė | L128: 7680
A129: 3 | B129: Valters | C129: Belasovs | D129: 2010-06-21 | E129: Mārupe | F129: 9.37 | J129: =G129+I129 -> 0 | K129: G.Ļebedevs, A.Blekte
A130: 4 | B130: Benas | C130: Ivanovas | D130: 2009-10-28 | E130: Panevėžys | F130: 7.77 | J130: =G130+I130 -> 0 | K130: R.Jakubauskas | L130: 7627
A131: 5 | B131: Simas | C131: Narbūda | D131: 2010-04-24 | E131: Kaunas | F131: 7.79 | J131: =G131+I131 -> 0 | K131: N. Gedgaudienė
A132: 6 | B132: Daniil | C132: Šelichov | D132: 2009-01-22 | E132: Klaipėda | F132: 7.45 | J132: =G132+I132 -> 0 | K132: N. Krakiene

Sheet Jn 60+200 (2)
A1: TARPTAUTINĖS VARŽYBOS ,,SPRINTO DIENA PANEVĖŽYJE"
K2: 2026-01-03
K3: Panevėžys
B4: 60+200 m. jaunės
B6: 1 | C6: bėgimas
A7: Takas | B7: Vardas | C7: Pavardė | D7: Gim. data | E7: Miestas | F7: 60m rez. | G7: Tšk. | H7: 200m rez. | I7: Tšk. | J7: Viso tšk. | K7: Treneriai
A8: 1 | B8: Urtė | C8: Rutkauskaitė | D8: 2009-11-08 | E8: Alytaus m. | F8: 9.93 | G8: 38 | H8: 33.84 | J8: =G8+I8 -> 38 | K8: V. Šmidtas
A9: 2 | B9: Aušrinė | C9: Markauskaitė | D9: 2009-01-20 | E9: Panevėžys | F9: 9.32 | G9: 35 | H9: 30.07 | J9: 35 | K9: A.Dobregienė
A10: 3 | B10: Austėja | C10: Ožalaitė | D10: 2010-01-12 | E10: Alytaus m. | F10: 8.90 | G10: 28 | H10: 30.58 | J10: 28 | K10: V. Šmidtas
A11: 4 | B11: Kotryna | C11: Černokauskaitė | D11: 2010-01-21 | E11: Vilnius | F11: 8.83 | G11: 27 | H11: 29.16 | J11: 27 | K11: T.Krasauskiemė
A12: 5 | B12: Felicita | C12: Ausekle | D12: 2009-09-29 | E12: Mārupe | F12: 8.79 | G12: 25 | H12: 29.15 | J12: 25 | K12: G.Ļebedevs, A.Blekte
A13: 6 | B13: Ugnė | C13: Margelytė | D13: 2009-09-04 | E13: Alytaus m. | F13: 8.79 | G13: 26 | H13: 29.12 | J13: 26 | K13: O. Vrubliauskas
B15: 2 | C15: bėgimas
A16: Takas | B16: Vardas | C16: Pavardė | D16: Gim. data | E16: Miestas | F16: 60m rez. | G16: Tšk. | H16: 200m rez. | I16: Tšk. | J16: Viso tšk. | K16: Treneriai
A17: 1 | B17: Liepa | C17: Mėlynytė | D17: 2010-07-07 | E17: Panevėžys | F17: 9.54 | G17: 37 | H17: 32.15 | J17: =G17+I17 -> 37 | K17: A.Dobregienė
A18: 2 | B18: Evita | C18: Vidzėnaitė | D18: 2010-11-19 | E18: Panevėžys | F18: 9.13 | G18: 33 | H18: 31.00 | J18: 33 | K18: A.Dobregienė
A19: 3 | B19: Urtė | C19: Juškaitė | D19: 2010-02-10 | E19: Kaunas | F19: 8.76 | G19: 24 | H19: 30.10 | J19: 24 | K19: J.Čižauskas
A20: 4 | B20: Darija | C20: Folkmanaitė | D20: 2009-01-27 | E20: Panevėžys | F20: 8.75 | G20: 23 | H20: 28.92 | J20: 23 | K20: A.Dobregienė
A21: 5 | B21: Rugilė | C21: Saltanavičiūtė | D21: 2010-01-22 | E21: Vilnius | F21: 8.73 | G21: 21 | H21: 29.46 | J21: 21 | K21: T.Krasauskienė
A22: 6 | B22: Vanesa | C22: Blekaitytė | D22: 2010-07-18 | E22: Marijampolė | F22: 8.73 | G22: 21 | H22: 28.83 | J22: 21 | K22: R. Bindokienė
B24: 3 | C24: bėgimas
A25: Takas | B25: Vardas | C25: Pavardė | D25: Gim. data | E25: Miestas | F25: 60m rez. | G25: Tšk. | H25: 200m rez. | I25: Tšk. | J25: Viso tšk. | K25: Treneriai
A26: 1 | B26: Rugilė | C26: Tupalskytė | D26: 2009-08-10 | E26: Panevėžys | F26: 9.45 | G26: 36 | H26: 32.14 | J26: =G26+I26 -> 36 | K26: A.Dobregienė
A27: 2 | B27: Madara | C27: Vaivare | D27: 2010-06-27 | E27: Mārupe | F27: 9.13 | G27: 33 | H27: 30.64 | J27: 33 | K27: G.Ļebedevs, A.Blekte
A28: 3 | B28: Marija | C28: Spūdytė | D28: 2009-08-10 | E28: Alytaus m. | F28: 8.68 | G28: 19 | H28: 28.85 | J28: 19 | K28: V. Šmidtas
A29: 4 | B29: Paulina | C29: Bakytė | D29: 2010-04-29 | E29: Alytaus m. | F29: 8.68 | G29: 19 | H29: 28.92 | J29: 19 | K29: V. Šmidtas
A30: 5 | B30: Eivilė | C30: Paškevičiūtė | D30: 2010-11-17 | E30: Vilnius | F30: 8.59 | G30: 17 | H30: 28.54 | J30: 17 | K30: T.Krasauskienė
A31: 6 | B31: Aurėja | C31: Mackevičiūtė | D31: 2009-07-28 | E31: Panevėžys | F31: 8.65 | G31: 18 | H31: 28.25 | J31: 18 | K31: R.Jakubauskas
B33: 4 | C33: bėgimas
A34: Takas | B34: Vardas | C34: Pavardė | D34: Gim. data | E34: Miestas | F34: 60m rez. | G34: Tšk. | H34: 200m rez. | I34: Tšk. | J34: Viso tšk. | K34: Treneriai
A35: 1 | J35: =G35+I35 -> 0
A36: 2 | B36: Elza | C36: Šembele | D36: 2009-12-29 | E36: Ryga | F36: 9.11 | G36: 32 | H36: 30.05 | J36: =G36+I36 -> 32 | K36: A.Saņņikovs
A37: 3 | B37: Uršulė | C37: Šveinauskė | D37: 2009-04-21 | E37: Panevėžys | F37: 8.57 | G37: 16 | H37: 29.13 | J37: =G37+I37 -> 16 | K37: R.Jakubauskas, R. Smilgys
A38: 4 | B38: Nikoleta | C38: Pantu | D38: 2010-02-28 | E38: Klaipėda | F38: 8.55 | G38: 15 | H38: 28.26 | J38: =G38+I38 -> 15 | K38: N. Krakiene
A39: 5 | B39: Paulina | C39: Pociūnaitė | D39: 2010-06-02 | E39: Klaipėda | F39: 8.51 | G39: 13 | H39: 28.34 | J39: =G39+I39 -> 13 | K39: N. Krakiene/ L.Gruzdienė
A40: 6 | B40: Mėja | C40: Žebrytė | D40: 2010-05-18 | E40: Klaipėda | F40: 8.51 | G40: 13 | H40: 27.41 | J40: =G40+I40 -> 13 | K40: K. Kozlovienė
B42: 5 | C42: bėgimas
A43: Takas | B43: Vardas | C43: Pavardė | D43: Gim. data | E43: Miestas | F43: 60m rez. | G43: Tšk. | H43: 200m rez. | I43: Tšk. | J43: Viso tšk. | K43: Treneriai
A44: 1 | J44: =G44+I44 -> 0
A45: 2 | B45: Evelina | C45: Klimavičiūtė | D45: 2010-09-23 | E45: Alytaus m. | F45: 9.08 | G45: 31 | H45: 31.3 | J45: =G45+I45 -> 31 | K45: V. Šmidtas
A46: 3 | B46: Atėnė | C46: Gūdmantaitė | D46: 2009-04-20 | E46: Kaunas | F46: 8.43 | G46: 12 | H46: 28.53 | J46: =G46+I46 -> 12 | K46: J.Čižauskas
A47: 4 | B47: Amelija | C47: Dit Ebef | D47: 2010-12-09 | E47: Vilnius | F47: 8.40 | G47: 11 | H47: 27.78 | J47: =G47+I47 -> 11 | K47: T.Krasauskienė | L47: 27.7717
A48: 5 | B48: Augustė | C48: Stragytė | D48: 2010-10-15 | E48: Kaunas | F48: 8.38 | G48: 9 | H48: 27.78 | J48: =G48+I48 -> 9 | K48: N. Gedgaudienė | L48: 27.7763
A49: 6 | B49: Gustė | C49: Janušauskaitė | D49: 2010-05-27 | E49: Panevėžys | F49: 8.39 | G49: 10 | H49: DNS | K49: G. Krivickas
B51: 6 | C51: bėgimas
A52: Takas | B52: Vardas | C52: Pavardė | D52: Gim. data | E52: Miestas | F52: 60m rez. | G52: Tšk. | H52: 200m rez. | I52: Tšk. | J52: Viso tšk. | K52: Treneriai
A54: 2 | B54: Darija | C54: Matukaitytė | D54: 2009-11-22 | E54: Panevėžys-Kėdainiai | F54: 9.01 | G54: 30 | H54: DNS | K54: R.Jakubauskas, R. Sakalauskienė
A55: 3 | B55: Annika | C55: Zvirbule | D55: 2010-11-30 | E55: Mārupe | F55: 8.36 | G55: 8 | H55: 27.42 | J55: =G55+I55 -> 8 | K55: G.Ļebedevs, A.Blekte
A56: 4 | B56: Milana | C56: Herasimenko | D56: 2010-12-09 | E56: Klaipėda | F56: 8.33 | G56: 7 | H56: 27.35 | J56: =G56+I56 -> 7 | K56: N. Krakiene
A57: 5 | B57: Ūla | C57: Ptakauskaitė | D57: 2010-08-06 | E57: Kaunas | F57: 8.25 | G57: 5 | H57: 28.43 | J57: =G57+I57 -> 5 | K57: E. Dilys
A58: 6 | B58: Amelija | C58: Ivanauskaitė | D58: 2009-06-28 | E58: Alytaus m. | F58: 8.29 | G58: 6 | H58: 26.95 | J58: =G58+I58 -> 6 | K58: V. Šmidtas
B64: 7 | C64: bėgimas
A65: Takas | B65: Vardas | C65: Pavardė | D65: Gim. data | E65: Miestas | F65: 60m rez. | G65: Tšk. | H65: 200m rez. | I65: Tšk. | J65: Viso tšk. | K65: Treneriai
A67: 2 | B67: Paulina | C67: Vorobjovaitė | D67: 2009-07-11 | E67: Alytaus m. | F67: 8.92 | G67: 29 | H67: 30.22 | J67: =G67+I67 -> 29 | K67: V. Šmidtas
A68: 3 | B68: Emilija | C68: Celiešiūtė | D68: 2010-09-28 | E68: Panevėžys | F68: 8.23 | G68: 4 | H68: 27.41 | J68: =G68+I68 -> 4 | K68: A.Dobregienė
A69: 4 | B69: Lėja | C69: Milkevičiūtė | D69: 2009-12-02 | E69: Alytaus m. | F69: 8.22 | G69: 3 | H69: 26.13 | J69: =G69+I69 -> 3 | K69: V. Šmidtas
A70: 5 | B70: Emilija | C70: Kropaitė | D70: 2009-05-17 | E70: Panevėžys | F70: 7.92 | G70: 1 | H70: 25.71 | J70: =G70+I70 -> 1 | K70: R.Jakubauskas
A71: 6 | B71: Smiltė | C71: Paukštytė | D71: 2009-11-20 | E71: Panevėžys | F71: 8.10 | G71: 2 | H71: 26.14 | J71: =G71+I71 -> 2 | K71: A.Dobregienė
B73: 60+200 m. jauniai
B75: 1 | C75: bėgimas
A76: Takas | B76: Vardas | C76: Pavardė | D76: Gim. data | E76: Miestas | F76: 60m rez. | G76: Tšk. | H76: 200m rez. | I76: Tšk. | J76: Viso tšk. | K76: Treneriai
A77: 1 | B77: Valters | C77: Belasovs | D77: 2010-06-21 | E77: Mārupe | F77: 9.37 | G77: 34 | H77: 30.81 | J77: =G77+I77 -> 34 | K77: G.Ļebedevs, A.Blekte
A78: 2 | B78: Oskaras | C78: Jegelevičius | D78: 2009-08-14 | E78: Alytaus m. | F78: 8.35 | G78: 29 | H78: 28.06 | J78: 29 | K78: O. Vrubliauskas
A79: 3 | B79: Dovidas | C79: Drabavičius | D79: 2009-06-04 | E79: Švenčionių r. | F79: 8.05 | G79: 24 | H79: 26.48 | J79: 24 | K79: R.Turla
A80: 4 | B80: Ignas | C80: Bukaveckas | D80: 2010-04-16 | E80: Alytaus m. | F80: 8.02 | G80: 23 | H80: 25.53 | J80: 23 | K80: V. Šmidtas
A81: 5 | B81: Danielius | C81: Butkus | D81: 2009-04-30 | E81: Alytaus m. | F81: 7.96 | G81: 21 | H81: 25.17 | J81: 21 | K81: V. Šmidtas
A82: 6 | B82: Vakaris | C82: Paulauskas | D82: 2010-01-13 | E82: Panevėžys | F82: 7.99 | G82: 22 | H82: 25.66 | J82: 22 | K82: K.Sabalytė
B84: 2 | C84: bėgimas
A85: Takas | B85: Vardas | C85: Pavardė | D85: Gim. data | E85: Miestas | F85: 60m rez. | G85: Tšk. | H85: 200m rez. | I85: Tšk. | J85: Viso tšk. | K85: Treneriai
A86: 1 | B86: Pijus | C86: Prakapavičius | D86: 2010-08-22 | E86: Alytaus m. | F86: 8.63 | G86: 33 | H86: 27.60 | J86: =G86+I86 -> 33 | K86: E.Sinkevičius / N.Andreikevičiūtė
A87: 2 | B87: Karolis | C87: Janevičius | D87: 2009-01-21 | E87: Panevėžys | F87: 8.35 | G87: 29 | H87: 27.37 | J87: 29 | K87: R.Jakubauskas
A88: 3 | B88: Gerhards | C88: Slavinskis | D88: 2009-07-28 | E88: Mārupe | F88: 7.92 | G88: 20 | H88: 26.72 | J88: 20 | K88: G.Ļebedevs, A.Blekte
A89: 4 | B89: Augustas | C89: Vaičekauskas | D89: 2008-10-08 | E89: Panevėžys-Kauno r. | F89: 7.85 | G89: 19 | H89: 26.06 | J89: 19 | K89: R.Jakubauskas, A.Starkevičius
A90: 5 | B90: Simas | C90: Narbūda | D90: 2010-04-24 | E90: Kaunas | F90: 7.79 | G90: 17 | H90: 25.21 | J90: 17 | K90: N. Gedgaudienė
A91: 6 | B91: Martynas | C91: Nikliauza | D91: 2009-03-11 | E91: Marijampolė | F91: 7.83 | G91: 18 | H91: 25.13 | J91: 18 | K91: R. Bindokienė
B96: 3 | C96: bėgimas
A97: Takas | B97: Vardas | C97: Pavardė | D97: Gim. data | E97: Miestas | F97: 60m rez. | G97: Tšk. | H97: 200m rez. | I97: Tšk. | J97: Viso tšk. | K97: Treneriai
A98: 1 | B98: Joris | C98: Maževičius | D98: 2010-02-02 | E98: Alytaus m. | F98: 8.51 | G98: 32 | H98: 27.98 | J98: =G98+I98 -> 32 | K98: O. Vrubliauskas
A99: 2 | B99: Jurgis | C99: Milašauskas | D99: 2009-11-09 | E99: Marijampolė | F99: 8.34 | G99: 28 | H99: 27.30 | J99: 28 | K99: R. Bindokienė
A100: 3 | B100: Jokūbas | C100: Kaminskas | D100: 2010-12-27 | E100: Panevėžys | F100: 7.77 | G100: 16 | H100: 25.15 | J100: 16 | K100: A.Dobregienė
A101: 4 | B101: Benas | C101: Ivanovas | D101: 2009-10-28 | E101: Panevėžys | F101: 7.77 | G101: 15 | H101: 24.69 | J101: 15 | K101: R.Jakubauskas
A102: 5 | B102: Justas | C102: Venckus | D102: 2009-01-15 | E102: Vilnius | F102: 7.69 | G102: 13 | H102: 25.82 | J102: 13 | K102: L.Juchnevičienė
A103: 6 | B103: Almantas | C103: Arelis | D103: 2009-08-03 | E103: Panevėžys | F103: 7.76 | G103: 14 | H103: 25.68 | J103: 14 | K103: A.Dobregienė
B105: 4 | C105: bėgimas
A106: Takas | B106: Vardas | C106: Pavardė | D106: Gim. data | E106: Miestas | F106: 60m rez. | G106: Tšk. | H106: 200m rez. | I106: Tšk. | J106: Viso tšk. | K106: Treneriai
A107: 1 | B107: Adas | C107: Jaras | D107: 2010-10-27 | E107: Marijampolė | F107: 8.45 | G107: 31 | H107: 27.94 | J107: =G107+I107 -> 31 | K107: R. Bindokienė
A108: 2 | B108: Dovydas | C108: Jančys | D108: 2010-01-19 | E108: Panevėžys | F108: 8.31 | G108: 27 | H108: 26.80 | J108: =G108+I108 -> 27 | K108: B.Šaučiūnaitė
A109: 3 | B109: Pauls | C109: Baltgailis | D109: 2010-05-11 | E109: Ryga | F109: 7.66 | G109: 12 | H109: 24.70 | J109: =G109+I109 -> 12 | K109: I.Eversone
A110: 4 | B110: Tomas | C110: Alijošaitis | D110: 2009-09-11 | E110: Panevėžys | F110: 7.62 | G110: 11 | H110: DNS | K110: V. Barvičiūtė
A111: 5 | B111: Nedas | C111: Dagys | D111: 2010-07-07 | E111: Panevėžys | F111: 7.51 | G111: 9 | H111: 24.71 | J111: =G111+I111 -> 9 | K111: R.Jakubauskas
A112: 6 | B112: Lukas | C112: Mažukna | D112: 2009-06-27 | E112: Panevėžys | F112: 7.55 | G112: 10 | H112: 24.39 | J112: =G112+I112 -> 10 | K112: R.Jakubauskas
B114: 5 | C114: bėgimas
A115: Takas | B115: Vardas | C115: Pavardė | D115: Gim. data | E115: Miestas | F115: 60m rez. | G115: Tšk. | H115: 200m rez. | I115: Tšk. | J115: Viso tšk. | K115: Treneriai
A117: 2 | B117: Ugnius | C117: Platūkis | D117: 2010-12-17 | E117: Alytaus m. | F117: 8.28 | G117: 26 | H117: 26.52 | J117: =G117+I117 -> 26 | K117: V. Šmidtas
A118: 3 | B118: Aleksei | C118: Kotok | D118: 2010-06-13 | E118: Klaipėda | F118: 7.48 | G118: 8 | H118: 24.64 | J118: =G118+I118 -> 8 | K118: N. Krakiene
A119: 4 | B119: Gustas | C119: Miliauskas | D119: 2009-12-24 | E119: Alytaus m. | F119: 7.46 | G119: 7 | H119: 23.73 | J119: =G119+I119 -> 7 | K119: V. Šmidtas
A120: 5 | B120: Julius | C120: Aukštikalnis | D120: 2009-12-17 | E120: Panevėžys | F120: 7.41 | G120: 5 | H120: 23.93 | J120: =G120+I120 -> 5 | K120: R.Jakubauskas
A121: 6 | B121: Daniil | C121: Šelichov | D121: 2009-01-22 | E121: Klaipėda | F121: 7.45 | G121: 6 | H121: 24.07 | J121: =G121+I121 -> 6 | K121: N. Krakiene
B128: 6 | C128: bėgimas
A129: Takas | B129: Vardas | C129: Pavardė | D129: Gim. data | E129: Miestas | F129: 60m rez. | G129: Tšk. | H129: 200m rez. | I129: Tšk. | J129: Viso tšk. | K129: Treneriai
A131: 2 | B131: Matas | C131: Garška | D131: 2010-03-18 | E131: Panevėžys | F131: 8.15 | G131: 25 | H131: 27.47 | J131: =G131+I131 -> 25 | K131: G. Krivickas
A132: 3 | B132: Aretas | C132: Gasiūnas | D132: 2009-01-26 | E132: Panevėžys | F132: 7.39 | G132: 4 | H132: 24.41 | J132: =G132+I132 -> 4 | K132: A.Dobregienė
A133: 4 | B133: Rapolas | C133: Juknius | D133: 2009-02-02 | E133: Panevėžys | F133: 7.38 | G133: 3 | H133: 24.10 | J133: =G133+I133 -> 3 | K133: R.Jakubauskas
A134: 5 | B134: Emilis | C134: Usovas | D134: 2009-12-11 | E134: Švenčionių r. | F134: 7.34 | G134: 1 | H134: 23.75 | J134: =G134+I134 -> 1 | K134: R.Turla
A135: 6 | B135: Ugnius | C135: Janušauskas | D135: 2009-06-17 | E135: Panevėžys | F135: 7.37 | G135: 2 | H135: 23.57 | J135: =G135+I135 -> 2 | K135: R. Smilgys

Sheet Jn 60+200 (G)
A1: TARPTAUTINĖS VARŽYBOS ,,SPRINTO DIENA PANEVĖŽYJE"
K2: 2026-01-03
K3: Panevėžys
B4: 60+200 m. jaunės
A6: Vieta | B6: Vardas | C6: Pavardė | D6: Gim. data | E6: Miestas | F6: 60m rez. | G6: Tšk. | H6: 200m rez. | I6: Tšk. | J6: Viso tšk. | K6: Treneriai
A7: 1 | B7: Emilija | C7: Kropaitė | D7: 2009-05-17 | E7: Panevėžys | F7: 7.92 | G7: 1 | H7: 25.71 | I7: 1 | J7: =G7+I7 -> 2 | K7: R.Jakubauskas
A8: 2 | B8: Smiltė | C8: Paukštytė | D8: 2009-11-20 | E8: Panevėžys | F8: 8.10 | G8: 2 | H8: 26.14 | I8: 3 | J8: 5 | K8: A.Dobregienė | L8: =SUM(F8,H8) -> 34.24
A9: 3 | B9: Lėja | C9: Milkevičiūtė | D9: 2009-12-02 | E9: Alytaus m. | F9: 8.22 | G9: 3 | H9: 26.13 | I9: 2 | J9: 5 | K9: V. Šmidtas | L9: =SUM(F9,H9) -> 34.35
A10: 4 | B10: Amelija | C10: Ivanauskaitė | D10: 2009-06-28 | E10: Alytaus m. | F10: 8.29 | G10: 6 | H10: 26.95 | I10: 4 | J10: 10 | K10: V. Šmidtas | L10: =SUM(F10,H10) -> 35.24
A11: 5 | B11: Emilija | C11: Celiešiūtė | D11: 2010-09-28 | E11: Panevėžys | F11: 8.23 | G11: 4 | H11: 27.41 | I11: 6 | J11: 10 | K11: A.Dobregienė | L11: =SUM(F11,H11) -> 35.64
A12: 6 | B12: Milana | C12: Herasimenko | D12: 2010-12-09 | E12: Klaipėda | F12: 8.33 | G12: 7 | H12: 27.35 | I12: 5 | J12: 12 | K12: N. Krakiene
A13: 7 | B13: Annika | C13: Zvirbule | D13: 2010-11-30 | E13: Mārupe | F13: 8.36 | G13: 8 | H13: 27.42 | I13: 8 | J13: 16 | K13: G.Ļebedevs, A.Blekte
A14: 8 | B14: Mėja | C14: Žebrytė | D14: 2010-05-18 | E14: Klaipėda | F14: 8.51 | G14: 13 | H14: 27.41 | I14: 6 | J14: 19 | K14: K. Kozlovienė
A15: 9 | B15: Augustė | C15: Stragytė | D15: 2010-10-15 | E15: Kaunas | F15: 8.38 | G15: 9 | H15: 27.78 | I15: 10 | J15: 19 | K15: N. Gedgaudienė | L15: =SUM(F15,H15) -> 36.16 | M15: 27.7763
A16: 10 | B16: Ūla | C16: Ptakauskaitė | D16: 2010-08-06 | E16: Kaunas | F16: 8.25 | G16: 5 | H16: 28.43 | I16: 14 | J16: 19 | K16: E. Dilys | L16: 36.68
A17: 11 | B17: Amelija | C17: Dit Ebef | D17: 2010-12-09 | E17: Vilnius | F17: 8.40 | G17: 11 | H17: 27.78 | I17: 9 | J17: 20 | K17: T.Krasauskienė | M17: 27.7717
A18: 12 | B18: Paulina | C18: Pociūnaitė | D18: 2010-06-02 | E18: Klaipėda | F18: 8.51 | G18: 13 | H18: 28.34 | I18: 13 | J18: 26 | K18: N. Krakiene/ L.Gruzdienė
A19: 13 | B19: Nikoleta | C19: Pantu | D19: 2010-02-28 | E19: Klaipėda | F19: 8.55 | G19: 15 | H19: 28.26 | I19: 12 | J19: 27 | K19: N. Krakiene | L19: =SUM(F19,H19) -> 36.81
A20: 14 | B20: Atėnė | C20: Gūdmantaitė | D20: 2009-04-20 | E20: Kaunas | F20: 8.43 | G20: 12 | H20: 28.53 | I20: 15 | J20: 27 | K20: J.Čižauskas | L20: 36.96
A21: 15 | B21: Aurėja | C21: Mackevičiūtė | D21: 2009-07-28 | E21: Panevėžys | F21: 8.65 | G21: 18 | H21: 28.25 | I21: 11 | J21: 29 | K21: R.Jakubauskas
A22: 16 | B22: Eivilė | C22: Paškevičiūtė | D22: 2010-11-17 | E22: Vilnius | F22: 8.59 | G22: 17 | H22: 28.54 | I22: 16 | J22: 33 | K22: T.Krasauskienė
A23: 17 | B23: Marija | C23: Spūdytė | D23: 2009-08-10 | E23: Alytaus m. | F23: 8.68 | G23: 19 | H23: 28.85 | I23: 18 | J23: 37 | K23: V. Šmidtas
A24: 18 | B24: Vanesa | C24: Blekaitytė | D24: 2010-07-18 | E24: Marijampolė | F24: 8.73 | G24: 21 | H24: 28.83 | I24: 17 | J24: 38 | K24: R. Bindokienė | L24: =SUM(F24,H24) -> 37.56
A25: 19 | B25: Uršulė | C25: Šveinauskė | D25: 2009-04-21 | E25: Panevėžys | F25: 8.57 | G25: 16 | H25: 29.13 | I25: 22 | J25: 38 | K25: R.Jakubauskas, R. Smilgys | L25: 37.70
A26: 20 | B26: Paulina | C26: Bakytė | D26: 2010-04-29 | E26: Alytaus m. | F26: 8.68 | G26: 19 | H26: 28.92 | I26: 20 | J26: 39 | K26: V. Šmidtas
A27: 21 | B27: Darija | C27: Folkmanaitė | D27: 2009-01-27 | E27: Panevėžys | F27: 8.75 | G27: 23 | H27: 28.92 | I27: 19 | J27: 42 | K27: A.Dobregienė
A28: 22 | B28: Rugilė | C28: Saltanavičiūtė | D28: 2010-01-22 | E28: Vilnius | F28: 8.73 | G28: 21 | H28: 29.46 | I28: 25 | J28: 46 | K28: T.Krasauskienė
A29: 23 | B29: Ugnė | C29: Margelytė | D29: 2009-09-04 | E29: Alytaus m. | F29: 8.79 | G29: 26 | H29: 29.12 | I29: 21 | J29: 47 | K29: O. Vrubliauskas
A30: 24 | B30: Felicita | C30: Ausekle | D30: 2009-09-29 | E30: Mārupe | F30: 8.79 | G30: 25 | H30: 29.15 | I30: 23 | J30: 48 | K30: G.Ļebedevs, A.Blekte
A31: 25 | B31: Kotryna | C31: Černokauskaitė | D31: 2010-01-21 | E31: Vilnius | F31: 8.83 | G31: 27 | H31: 29.16 | I31: 24 | J31: 51 | K31: T.Krasauskiemė
A32: 26 | B32: Urtė | C32: Juškaitė | D32: 2010-02-10 | E32: Kaunas | F32: 8.76 | G32: 24 | H32: 30.10 | I32: 28 | J32: 52 | K32: J.Čižauskas
A33: 27 | B33: Austėja | C33: Ožalaitė | D33: 2010-01-12 | E33: Alytaus m. | F33: 8.90 | G33: 28 | H33: 30.58 | I33: 29 | J33: 57 | K33: V. Šmidtas
A34: 28 | B34: Elza | C34: Šembele | D34: 2009-12-29 | E34: Ryga | F34: 9.11 | G34: 32 | H34: 30.05 | I34: 26 | J34: 58 | K34: A.Saņņikovs
A35: 29 | B35: Paulina | C35: Vorobjovaitė | D35: 2009-07-11 | E35: Alytaus m. | F35: 8.92 | G35: 29 | H35: 30.22 | I35: 29 | J35: 58 | K35: V. Šmidtas
A36: 30 | B36: Aušrinė | C36: Markauskaitė | D36: 2009-01-20 | E36: Panevėžys | F36: 9.32 | G36: 35 | H36: 30.07 | I36: 27 | J36: 62 | K36: A.Dobregienė
A37: 31 | B37: Madara | C37: Vaivare | D37: 2010-06-27 | E37: Mārupe | F37: 9.13 | G37: 33 | H37: 30.64 | I37: 31 | J37: 64 | K37: G.Ļebedevs, A.Blekte | L37: =SUM(F37,H37) -> 39.77
A38: 32 | B38: Evelina | C38: Klimavičiūtė | D38: 2010-09-23 | E38: Alytaus m. | F38: 9.08 | G38: 31 | H38: 31.3 | I38: 33 | J38: 64 | K38: V. Šmidtas | L38: 40.38
A39: 33 | B39: Evita | C39: Vidzėnaitė | D39: 2010-11-19 | E39: Panevėžys | F39: 9.13 | G39: 33 | H39: 31.00 | I39: 32 | J39: 65 | K39: A.Dobregienė
A40: 34 | B40: Rugilė | C40: Tupalskytė | D40: 2009-08-10 | E40: Panevėžys | F40: 9.45 | G40: 36 | H40: 32.14 | I40: 34 | J40: 70 | K40: A.Dobregienė
A41: 35 | B41: Liepa | C41: Mėlynytė | D41: 2010-07-07 | E41: Panevėžys | F41: 9.54 | G41: 37 | H41: 32.15 | I41: 35 | J41: 72 | K41: A.Dobregienė
A42: 36 | B42: Urtė | C42: Rutkauskaitė | D42: 2009-11-08 | E42: Alytaus m. | F42: 9.93 | G42: 38 | H42: 33.84 | I42: 36 | J42: 74 | K42: V. Šmidtas
A43: 37 | B43: Gustė | C43: Janušauskaitė | D43: 2010-05-27 | E43: Panevėžys | F43: 8.39 | G43: 10 | H43: DNS | K43: G. Krivickas
A44: 38 | B44: Darija | C44: Matukaitytė | D44: 2009-11-22 | E44: Panevėžys-Kėdainiai | F44: 9.01 | G44: 30 | H44: DNS | K44: R.Jakubauskas, R. Sakalauskienė
B46: 60+200 m. jauniai
A48: Vieta | B48: Vardas | C48: Pavardė | D48: Gim. data | E48: Miestas | F48: 60m rez. | G48: Tšk. | H48: 200m rez. | I48: Tšk. | J48: Viso tšk. | K48: Treneriai
A49: 1 | B49: Ugnius | C49: Janušauskas | D49: 2009-06-17 | E49: Panevėžys | F49: 7.37 | G49: 2 | H49: 23.57 | I49: 1 | J49: =G49+I49 -> 3 | K49: R. Smilgys
A50: 2 | B50: Emilis | C50: Usovas | D50: 2009-12-11 | E50: Švenčionių r. | F50: 7.34 | G50: 1 | H50: 23.75 | I50: 3 | J50: 4 | K50: R.Turla
A51: 3 | B51: Gustas | C51: Miliauskas | D51: 2009-12-24 | E51: Alytaus m. | F51: 7.46 | G51: 7 | H51: 23.73 | I51: 2 | J51: 9 | K51: V. Šmidtas | L51: =SUM(F51,H51) -> 31.19
A52: 4 | B52: Julius | C52: Aukštikalnis | D52: 2009-12-17 | E52: Panevėžys | F52: 7.41 | G52: 5 | H52: 23.93 | I52: 4 | J52: 9 | K52: R.Jakubauskas | L52: 31.34
A53: 5 | B53: Rapolas | C53: Juknius | D53: 2009-02-02 | E53: Panevėžys | F53: 7.38 | G53: 3 | H53: 24.10 | I53: 6 | J53: 9 | K53: R.Jakubauskas | L53: 31.48
A54: 6 | B54: Daniil | C54: Šelichov | D54: 2009-01-22 | E54: Klaipėda | F54: 7.45 | G54: 6 | H54: 24.07 | I54: 5 | J54: 11 | K54: N. Krakiene
A55: 7 | B55: Aretas | C55: Gasiūnas | D55: 2009-01-26 | E55: Panevėžys | F55: 7.39 | G55: 4 | H55: 24.41 | I55: 8 | J55: 12 | K55: A.Dobregienė
A56: 8 | B56: Lukas | C56: Mažukna | D56: 2009-06-27 | E56: Panevėžys | F56: 7.55 | G56: 10 | H56: 24.39 | I56: 7 | J56: 17 | K56: R.Jakubauskas | L56: =SUM(F56,H56) -> 31.94
A57: 9 | B57: Aleksei | C57: Kotok | D57: 2010-06-13 | E57: Klaipėda | F57: 7.48 | G57: 8 | H57: 24.64 | I57: 9 | J57: 17 | K57: N. Krakiene | L57: 32.12
A58: 10 | B58: Nedas | C58: Dagys | D58: 2010-07-07 | E58: Panevėžys | F58: 7.51 | G58: 9 | H58: 24.71 | I58: 12 | J58: 21 | K58: R.Jakubauskas
A59: 11 | B59: Pauls | C59: Baltgailis | D59: 2010-05-11 | E59: Ryga | F59: 7.66 | G59: 12 | H59: 24.70 | I59: 11 | J59: 23 | K59: I.Eversone
A60: 12 | B60: Benas | C60: Ivanovas | D60: 2009-10-28 | E60: Panevėžys | F60: 7.77 | G60: 15 | H60: 24.69 | I60: 10 | J60: 25 | K60: R.Jakubauskas
A61: 13 | B61: Jokūbas | C61: Kaminskas | D61: 2010-12-27 | E61: Panevėžys | F61: 7.77 | G61: 16 | H61: 25.15 | I61: 14 | J61: 30 | K61: A.Dobregienė
A62: 14 | B62: Martynas | C62: Nikliauza | D62: 2009-03-11 | E62: Marijampolė | F62: 7.83 | G62: 18 | H62: 25.13 | I62: 13 | J62: 31 | K62: R. Bindokienė
A63: 15 | B63: Simas | C63: Narbūda | D63: 2010-04-24 | E63: Kaunas | F63: 7.79 | G63: 17 | H63: 25.21 | I63: 16 | J63: 33 | K63: N. Gedgaudienė | L63: =SUM(F63,H63) -> 33.00
A64: 16 | B64: Almantas | C64: Arelis | D64: 2009-08-03 | E64: Panevėžys | F64: 7.76 | G64: 14 | H64: 25.68 | I64: 19 | J64: 33 | K64: A.Dobregienė | L64: 33.44
A65: 17 | B65: Justas | C65: Venckus | D65: 2009-01-15 | E65: Vilnius | F65: 7.69 | G65: 13 | H65: 25.82 | I65: 20 | J65: 33 | K65: L.Juchnevičienė | L65: 33.51
A66: 18 | B66: Danielius | C66: Butkus | D66: 2009-04-30 | E66: Alytaus m. | F66: 7.96 | G66: 21 | H66: 25.17 | I66: 15 | J66: 36 | K66: V. Šmidtas
A67: 19 | B67: Ignas | C67: Bukaveckas | D67: 2010-04-16 | E67: Alytaus m. | F67: 8.02 | G67: 23 | H67: 25.53 | I67: 17 | J67: 40 | K67: V. Šmidtas | L67: =SUM(F67,H67) -> 33.55
A68: 20 | B68: Vakaris | C68: Paulauskas | D68: 2010-01-13 | E68: Panevėžys | F68: 7.99 | G68: 22 | H68: 25.66 | I68: 18 | J68: 40 | K68: K.Sabalytė | L68: 33.65
A69: 21 | B69: Augustas | C69: Vaičekauskas | D69: 2008-10-08 | E69: Panevėžys-Kauno r. | F69: 7.85 | G69: 19 | H69: 26.06 | I69: 21 | J69: 40 | K69: R.Jakubauskas, A.Starkevičius | L69: 33.91
A70: 22 | B70: Gerhards | C70: Slavinskis | D70: 2009-07-28 | E70: Mārupe | F70: 7.92 | G70: 20 | H70: 26.72 | I70: 24 | J70: 44 | K70: G.Ļebedevs, A.Blekte
A71: 23 | B71: Dovidas | C71: Drabavičius | D71: 2009-06-04 | E71: Švenčionių r. | F71: 8.05 | G71: 24 | H71: 26.48 | I71: 22 | J71: 46 | K71: R.Turla
A72: 24 | B72: Ugnius | C72: Platūkis | D72: 2010-12-17 | E72: Alytaus m. | F72: 8.28 | G72: 26 | H72: 26.52 | I72: 23 | J72: 49 | K72: V. Šmidtas
A73: 25 | B73: Dovydas | C73: Jančys | D73: 2010-01-19 | E73: Panevėžys | F73: 8.31 | G73: 27 | H73: 26.80 | I73: 25 | J73: 52 | K73: B.Šaučiūnaitė
A74: 26 | B74: Matas | C74: Garška | D74: 2010-03-18 | E74: Panevėžys | F74: 8.15 | G74: 25 | H74: 27.47 | I74: 28 | J74: 53 | K74: G. Krivickas
A75: 27 | B75: Jurgis | C75: Milašauskas | D75: 2009-11-09 | E75: Marijampolė | F75: 8.34 | G75: 28 | H75: 27.30 | I75: 26 | J75: 54 | K75: R. Bindokienė
A76: 28 | B76: Karolis | C76: Janevičius | D76: 2009-01-21 | E76: Panevėžys | F76: 8.35 | G76: 29 | H76: 27.37 | I76: 27 | J76: 56 | K76: R.Jakubauskas
A77: 29 | B77: Adas | C77: Jaras | D77: 2010-10-27 | E77: Marijampolė | F77: 8.45 | G77: 31 | H77: 27.94 | I77: 30 | J77: 61 | K77: R. Bindokienė | L77: =SUM(F77,H77) -> 36.39
A78: 30 | B78: Oskaras | C78: Jegelevičius | D78: 2009-08-14 | E78: Alytaus m. | F78: 8.35 | G78: 29 | H78: 28.06 | I78: 32 | J78: 61 | K78: O. Vrubliauskas | L78: 36.41
A79: 31 | B79: Pijus | C79: Prakapavičius | D79: 2010-08-22 | E79: Alytaus m. | F79: 8.63 | G79: 33 | H79: 27.60 | I79: 29 | J79: 62 | K79: E.Sinkevičius / N.Andreikevičiūtė
A80: 32 | B80: Joris | C80: Maževičius | D80: 2010-02-02 | E80: Alytaus m. | F80: 8.51 | G80: 32 | H80: 27.98 | I80: 31 | J80: 63 | K80: O. Vrubliauskas
A81: 33 | B81: Valters | C81: Belasovs | D81: 2010-06-21 | E81: Mārupe | F81: 9.37 | G81: 34 | H81: 30.81 | I81: 33 | J81: 67 | K81: G.Ļebedevs, A.Blekte
B82: Tomas | C82: Alijošaitis | D82: 2009-09-11 | E82: Panevėžys | F82: 7.62 | G82: 11 | H82: DNS | K82: V. Barvičiūtė

Sheet J 60+200
A1: TARPTAUTINĖS VARŽYBOS ,,SPRINTO DIENA PANEVĖŽYJE"
K2: 2026-01-03
K3: Panevėžys
B4: 60+200 m. jaunimas
B6: 1 | C6: bėgimas
A7: Takas | B7: Vardas | C7: Pavardė | D7: Gim. data | E7: Miestas | F7: 60m rez. | G7: Tšk. | H7: 200m rez. | I7: Tšk. | J7: Viso tšk. | K7: Treneriai
A8: 1 | J8: =G8+I8 -> 0
A9: 2 | B9: Melita | C9: Visbarkaitė | D9: 2007-01-29 | E9: Panevėžys | F9: 8.62 | J9: =G9+I9 -> 0 | K9: A.Dobregienė,K.Sabalytė
A10: 3 | B10: Viltė | C10: Poviliūnaitė | D10: 2008-10-08 | E10: Panevėžys | F10: 8.36 | J10: =G10+I10 -> 0 | K10: R.Jakubauskas, R.Smilgys
A11: 4 | B11: Patricija | C11: Grigalionytė | D11: 2007-08-04 | E11: Panevėžys | F11: 7.98 | J11: =G11+I11 -> 0 | K11: A.Dobregienė
A12: 5 | B12: Neda | C12: Šartutė | D12: 2008-07-16 | E12: Kaunas | F12: DNS | J12: =G12+I12 -> 0 | K12: N.Gedgaudienė
A13: 6 | J13: =G13+I13 -> 0
B15: 2 | C15: bėgimas
A16: Takas | B16: Vardas | C16: Pavardė | D16: Gim. data | E16: Miestas | F16: 60m rez. | G16: Tšk. | H16: 200m rez. | I16: Tšk. | J16: Viso tšk. | K16: Treneriai
A17: 1 | J17: =G17+I17 -> 0
A18: 2 | B18: Karina | C18: Pazniokaitė | D18: 2008-05-28 | E18: Panevėžys | F18: 8.57 | J18: =G18+I18 -> 0 | K18: G. Krivickas
A19: 3 | B19: Melisa | C19: Dābola Freija | D19: 2007-06-26 | E19: Ryga | F19: 8.65 | J19: =G19+I19 -> 0 | K19: A.Saņņikovs
A20: 4 | B20: Mėta | C20: Narbutaitė | D20: 2008-06-12 | E20: Panevėžys | F20: 8.62 | J20: =G20+I20 -> 0 | K20: B.Šaučiūnaitė
A21: 5 | J21: =G21+I21 -> 0
A22: 6 | J22: =G22+I22 -> 0
B33: 60+200 m. jaunimas
B35: 1 | C35: bėgimas
A36: Takas | B36: Vardas | C36: Pavardė | D36: Gim. data | E36: Miestas | F36: 60m rez. | G36: Tšk. | H36: 200m rez. | I36: Tšk. | J36: Viso tšk. | K36: Treneriai
A37: 1
A38: 2 | B38: Kārlis | C38: Kristapsons | D38: 2008-08-09 | E38: Mārupe | F38: 7.64 | J38: =G38+I38 -> 0 | K38: G.Ļebedevs, A.Blekte
A39: 3 | B39: Erikas | C39: Žotkevičius | D39: 2008-02-12 | E39: Kaunas | F39: 7.13 | J39: 0 | K39: N. Gedgaudienė
A40: 4 | B40: Arvydas | C40: Čerbauskas | D40: 2008-01-12 | E40: Panevėžys | F40: 7.61 | J40: 0 | K40: R. Smilgys, V. Barvičiūtė
A41: 5 | B41: Danielius | C41: Ilčišin | D41: 2007-07-16 | E41: Švenčionių r. | F41: 8.19 | J41: 0 | K41: R.Turla
A42: 6 | B42: Aidas | C42: Armokas | D42: 2008-04-01 | E42: Panevėžys | F42: 7.25 | J42: 0 | K42: A.Dobregienė
B44: 2 | C44: bėgimas
A45: Takas | B45: Vardas | C45: Pavardė | D45: Gim. data | E45: Miestas | F45: 60m rez. | G45: Tšk. | H45: 200m rez. | I45: Tšk. | J45: Viso tšk. | K45: Treneriai
A46: 1 | J46: =G46+I46 -> 0
A47: 2 | B47: Aurimas | C47: Samulionis | D47: 2007-04-21 | E47: Biržai | F47: 7.34 | J47: =G47+I47 -> 0 | K47: S.Strelcovas
A48: 3 | B48: Jānis | C48: Ozols | D48: 2008-04-08 | E48: Mārupe | F48: 7.49 | J48: =G48+I48 -> 0 | K48: G.Ļebedevs, A.Blekte
A49: 4 | B49: Robertas | C49: Deksnys | D49: 2008-06-22 | E49: Vilnius | F49: 7.48 | J49: =G49+I49 -> 0 | K49: N. Žilinskienė
A50: 5 | J50: =G50+I50 -> 0
A51: 6 | J51: =G51+I51 -> 0

Sheet J 60+200 (2)
A1: TARPTAUTINĖS VARŽYBOS ,,SPRINTO DIENA PANEVĖŽYJE"
K2: 2026-01-03
K3: Panevėžys
B4: 60+200 m.
A6: Takas | B6: Vardas | C6: Pavardė | D6: Gim. data | E6: Miestas | F6: 60m rez. | G6: Tšk. | H6: 200m rez. | I6: Tšk. | J6: Viso tšk. | K6: Treneriai
A7: 1 | B7: Melisa | C7: Dābola Freija | D7: 2007-06-26 | E7: Ryga | F7: 8.65 | G7: 6 | H7: 29.09 | J7: =G7+I7 -> 6 | K7: A.Saņņikovs
A8: 2 | B8: Mėta | C8: Narbutaitė | D8: 2008-06-12 | E8: Panevėžys | F8: 8.62 | G8: 4 | H8: 29.77 | J8: 4 | K8: B.Šaučiūnaitė
A9: 3 | B9: Melita | C9: Visbarkaitė | D9: 2007-01-29 | E9: Panevėžys | F9: 8.62 | G9: 4 | H9: 29.46 | J9: 4 | K9: A.Dobregienė,K.Sabalytė
A10: 4 | B10: Karina | C10: Pazniokaitė | D10: 2008-05-28 | E10: Panevėžys | F10: 8.57 | G10: 3 | H10: 28.05 | J10: 3 | K10: G. Krivickas
A11: 5 | B11: Patricija | C11: Grigalionytė | D11: 2007-08-04 | E11: Panevėžys | F11: 7.98 | G11: 1 | H11: 26.51 | J11: 1 | K11: A.Dobregienė
A12: 6 | B12: Viltė | C12: Poviliūnaitė | D12: 2008-10-08 | E12: Panevėžys | F12: 8.36 | G12: 2 | H12: 27.81 | J12: 2 | K12: R.Jakubauskas, R.Smilgys
B14: 60+200 m.
B16: 1 | C16: bėgimas
A17: Takas | B17: Vardas | C17: Pavardė | D17: Gim. data | E17: Miestas | F17: 60m rez. | G17: Tšk. | H17: 200m rez. | I17: Tšk. | J17: Viso tšk. | K17: Treneriai
A18: 2 | J18: =G18+I18 -> 0
A19: 3 | B19: Danielius | C19: Ilčišin | D19: 2007-07-16 | E19: Švenčionių r. | F19: 8.19 | G19: 8 | H19: 26.65 | J19: =G19+I19 -> 8 | K19: R.Turla
A20: 4 | B20: Kārlis | C20: Kristapsons | D20: 2008-08-09 | E20: Mārupe | F20: 7.64 | G20: 7 | H20: 25.18 | J20: =G20+I20 -> 7 | K20: G.Ļebedevs, A.Blekte
A21: 5 | B21: Jānis | C21: Ozols | D21: 2008-04-08 | E21: Mārupe | F21: 7.49 | G21: 5 | H21: 24.42 | J21: =G21+I21 -> 5 | K21: G.Ļebedevs, A.Blekte
A22: 6 | B22: Arvydas | C22: Čerbauskas | D22: 2008-01-12 | E22: Panevėžys | F22: 7.61 | G22: 6 | H22: 24.47 | J22: =G22+I22 -> 6 | K22: R. Smilgys, V. Barvičiūtė
B24: 2 | C24: bėgimas
A25: Takas | B25: Vardas | C25: Pavardė | D25: Gim. data | E25: Miestas | F25: 60m rez. | G25: Tšk. | H25: 200m rez. | I25: Tšk. | J25: Viso tšk. | K25: Treneriai
A26: 1 | J26: =G26+I26 -> 0
A27: 2 | J27: 0
A28: 3 | B28: Robertas | C28: Deksnys | D28: 2008-06-22 | E28: Vilnius | F28: 7.48 | G28: 4 | H28: 24.78 | J28: =G28+I28 -> 4 | K28: N. Žilinskienė
A29: 4 | B29: Aurimas | C29: Samulionis | D29: 2007-04-21 | E29: Biržai | F29: 7.34 | G29: 3 | H29: 25.32 | J29: =G29+I29 -> 3 | K29: S.Strelcovas
A30: 5 | B30: Erikas | C30: Žotkevičius | D30: 2008-02-12 | E30: Kaunas | F30: 7.13 | G30: 1 | H30: 22.57 | J30: =G30+I30 -> 1 | K30: N. Gedgaudienė
A31: 6 | B31: Aidas | C31: Armokas | D31: 2008-04-01 | E31: Panevėžys | F31: 7.25 | G31: 2 | H31: 23.20 | J31: =G31+I31 -> 2 | K31: A.Dobregienė

Sheet J 60+200 (G)
A1: TARPTAUTINĖS VARŽYBOS ,,SPRINTO DIENA PANEVĖŽYJE"
K2: 2026-01-03
K3: Panevėžys
B4: 60+200 m. jaunimas
A7: Vieta | B7: Vardas | C7: Pavardė | D7: Gim. data | E7: Miestas | F7: 60m rez. | G7: Tšk. | H7: 200m rez. | I7: Tšk. | J7: Viso tšk. | K7: Treneriai
A8: 1 | B8: Patricija | C8: Grigalionytė | D8: 2007-08-04 | E8: Panevėžys | F8: 7.98 | G8: 1 | H8: 26.51 | I8: 1 | J8: =G8+I8 -> 2 | K8: A.Dobregienė
A9: 2 | B9: Viltė | C9: Poviliūnaitė | D9: 2008-10-08 | E9: Panevėžys | F9: 8.36 | G9: 2 | H9: 27.81 | I9: 2 | J9: 4 | K9: R.Jakubauskas, R.Smilgys
A10: 3 | B10: Karina | C10: Pazniokaitė | D10: 2008-05-28 | E10: Panevėžys | F10: 8.57 | G10: 3 | H10: 28.05 | I10: 3 | J10: 6 | K10: G. Krivickas
A11: 4 | B11: Melita | C11: Visbarkaitė | D11: 2007-01-29 | E11: Panevėžys | F11: 8.62 | G11: 4 | H11: 29.46 | I11: 5 | J11: 9 | K11: A.Dobregienė,K.Sabalytė
A12: 5 | B12: Melisa | C12: Dābola Freija | D12: 2007-06-26 | E12: Ryga | F12: 8.65 | G12: 6 | H12: 29.09 | I12: 4 | J12: 10 | K12: A.Saņņikovs | L12: =SUM(F12,H12) -> 37.74
A13: 6 | B13: Mėta | C13: Narbutaitė | D13: 2008-06-12 | E13: Panevėžys | F13: 8.62 | G13: 4 | H13: 29.77 | I13: 6 | J13: 10 | K13: B.Šaučiūnaitė | L13: 38.39
B15: 60+200 m. jaunimas
A17: Vieta | B17: Vardas | C17: Pavardė | D17: Gim. data | E17: Miestas | F17: 60m rez. | G17: Tšk. | H17: 200m rez. | I17: Tšk. | J17: Viso tšk. | K17: Treneriai
A18: 1 | B18: Erikas | C18: Žotkevičius | D18: 2008-02-12 | E18: Kaunas | F18: 7.13 | G18: 1 | H18: 22.57 | I18: 1 | J18: =G18+I18 -> 2 | K18: N. Gedgaudienė
A19: 2 | B19: Aidas | C19: Armokas | D19: 2008-04-01 | E19: Panevėžys | F19: 7.25 | G19: 2 | H19: 23.20 | I19: 2 | J19: 4 | K19: A.Dobregienė
A20: 3 | B20: Jānis | C20: Ozols | D20: 2008-04-08 | E20: Mārupe | F20: 7.49 | G20: 5 | H20: 24.42 | I20: 3 | J20: 8 | K20: G.Ļebedevs, A.Blekte
A21: 4 | B21: Robertas | C21: Deksnys | D21: 2008-06-22 | E21: Vilnius | F21: 7.48 | G21: 4 | H21: 24.78 | I21: 5 | J21: 9 | K21: N. Žilinskienė
A22: 5 | B22: Arvydas | C22: Čerbauskas | D22: 2008-01-12 | E22: Panevėžys | F22: 7.61 | G22: 6 | H22: 24.47 | I22: 4 | J22: 10 | K22: R. Smilgys, V. Barvičiūtė | L22: =SUM(F22,H22) -> 32.08
A23: 6 | B23: Aurimas | C23: Samulionis | D23: 2007-04-21 | E23: Biržai | F23: 7.34 | G23: 3 | H23: 25.32 | I23: 7 | J23: 10 | K23: S.Strelcovas | L23: 32.66
A24: 7 | B24: Kārlis | C24: Kristapsons | D24: 2008-08-09 | E24: Mārupe | F24: 7.64 | G24: 7 | H24: 25.18 | I24: 6 | J24: 13 | K24: G.Ļebedevs, A.Blekte
A25: 8 | B25: Danielius | C25: Ilčišin | D25: 2007-07-16 | E25: Švenčionių r. | F25: 8.19 | G25: 8 | H25: 26.65 | I25: 8 | J25: 16 | K25: R.Turla

Sheet S 60+200
A1: TARPTAUTINĖS VARŽYBOS ,,SPRINTO DIENA PANEVĖŽYJE"
K2: 2026-01-03
K3: Panevėžys
B4: 60+200 m. moterys
A7: Takas | B7: Vardas | C7: Pavardė | D7: Gim. data | E7: Miestas | F7: 60m rez. | G7: Tšk. | H7: 200m rez. | I7: Tšk. | J7: Viso tšk. | K7: Treneriai
A8: 1 | J8: =G8+I8 -> 0
A9: 2 | B9: Ernesta | C9: Karaškienė | D9: 1979-03-06 | E9: Kaunas | F9: 8.46 | J9: =G9+I9 -> 0 | K9: E.Karaškienė, J.Čižauskas
A10: 3 | B10: Irina | C10: Pozdejeva | D10: 1998-08-28 | E10: Vilnius | F10: 8.87 | J10: 0 | K10: V.Kozlov, P.Žukienė
A11: 4 | B11: Evelina | C11: Savickaitė | D11: 2000-04-21 | E11: Kaunas | F11: 7.79 | J11: 0 | K11: M.Vadeikis
A12: 5 | B12: Augustė | C12: Karosaitė | D12: 2006-08-01 | E12: Kaunas | F12: 7.99 | J12: =G12+I12 -> 0 | K12: M.Vadeikis
A13: 6 | J13: =G13+I13 -> 0
B15: 60+200 m. vyrai
B17: 1 | C17: bėgimas
A18: Takas | B18: Vardas | C18: Pavardė | D18: Gim. data | E18: Miestas | F18: 60m rez. | G18: Tšk. | H18: 200m rez. | I18: Tšk. | J18: Viso tšk. | K18: Treneriai
A19: 1 | J19: =G19+I19 -> 0
A20: 2 | B20: Martynas | C20: Miliauskas | D20: 2004-07-17 | E20: Kaunas | F20: 7.29 | J20: =G20+I20 -> 0 | K20: E.Karaškienė
A21: 3 | B21: Arminas | C21: Šeštokas | D21: 2001-04-19 | E21: Alytaus m. | F21: 7.12 | J21: =G21+I21 -> 0 | K21: V. Šmidtas
A22: 4 | B22: Domas | C22: Gailevičius | D22: 2001-12-18 | E22: Kaunas | F22: 7.09 | J22: =G22+I22 -> 0 | K22: A.Gavėnas
A23: 5 | B23: Maksim | C23: Kraskovskij | D23: 2002-01-21 | E23: Vilnius | F23: DNS | J23: =G23+I23 -> 0
A24: 6 | J24: =G24+I24 -> 0
B25: 2 | C25: bėgimas
A26: 1 | J26: =G26+I26 -> 0
A27: 2 | B27: Artas | C27: Laučys | D27: 2005-02-28 | E27: Kaunas | J27: =G27+I27 -> 0 | K27: N. Gedgaudienė
A28: 3 | B28: Domantas | C28: Dobrega | D28: 1999-05-03 | E28: Kaunas | J28: =G28+I28 -> 0 | K28: A.Dobregienė, M.Vadeikis
A29: 4 | B29: Marius | C29: Kučas | D29: 2004-12-17 | E29: Kaunas | J29: =G29+I29 -> 0 | K29: A. Skujytė
A30: 5 | B30: Kristupas | C30: Seikauskas | D30: 2001-05-08 | E30: Kaunas | J30: =G30+I30 -> 0 | K30: A.Dobregienė, M.Vadeikis
A31: 6 | B31: Renaldas | C31: Sokolovskis | D31: 1998-06-08 | E31: Kaunas | J31: =G31+I31 -> 0 | K31: J.Čižauskas

Sheet S 60+200 (2)
A1: TARPTAUTINĖS VARŽYBOS ,,SPRINTO DIENA PANEVĖŽYJE"
K2: 2026-01-03
K3: Panevėžys
B4: 60+200 m. moterys
A7: Takas | B7: Vardas | C7: Pavardė | D7: Gim. data | E7: Miestas | F7: 60m rez. | G7: Tšk. | H7: 200m rez. | I7: Tšk. | J7: Viso tšk. | K7: Treneriai
A8: 3 | B8: Irina | C8: Pozdejeva | D8: 1998-08-28 | E8: Vilnius | F8: 8.87 | G8: 4 | H8: 29.18 | J8: =G8+I8 -> 4 | K8: V.Kozlov, P.Žukienė
A9: 4 | B9: Ernesta | C9: Karaškienė | D9: 1979-03-06 | E9: Kaunas | F9: 8.46 | G9: 3 | H9: DNS | K9: E.Karaškienė, J.Čižauskas
A10: 5 | B10: Evelina | C10: Savickaitė | D10: 2000-04-21 | E10: Kaunas | F10: 7.79 | G10: 1 | H10: 26.19 | J10: =G10+I10 -> 1 | K10: M.Vadeikis
A11: 6 | B11: Augustė | C11: Karosaitė | D11: 2006-08-01 | E11: Kaunas | F11: 7.99 | G11: 2 | H11: 25.57 | J11: =G11+I11 -> 2 | K11: M.Vadeikis
B13: 60+200 m. vyrai
B15: 1 | C15: bėgimas
A16: Takas | B16: Vardas | C16: Pavardė | D16: Gim. data | E16: Miestas | F16: 60m rez. | G16: Tšk. | H16: 200m rez. | I16: Tšk. | J16: Viso tšk. | K16: Treneriai
A17: 2 | J17: =G17+I17 -> 0
A18: 3 | J18: =G18+I18 -> 0
A19: 4 | B19: Artas | C19: Laučys | D19: 2005-02-28 | E19: Kaunas | F19: 7.39 | G19: 7 | H19: 23.72 | J19: =G19+I19 -> 7 | K19: N. Gedgaudienė
A20: 5 | B20: Martynas | C20: Miliauskas | D20: 2004-07-17 | E20: Kaunas | F20: 7.29 | G20: 5 | H20: 23.90 | J20: =G20+I20 -> 5 | K20: E.Karaškienė
A21: 6 | B21: Renaldas | C21: Sokolovskis | D21: 1998-06-08 | E21: Kaunas | F21: 7.31 | G21: 6 | H21: 24.36 | J21: =G21+I21 -> 6 | K21: J.Čižauskas
B23: 2 | C23: bėgimas
A24: Takas | B24: Vardas | C24: Pavardė | D24: Gim. data | E24: Miestas | F24: 60m rez. | G24: Tšk. | H24: 200m rez. | I24: Tšk. | J24: Viso tšk. | K24: Treneriai
A25: 2 | J25: =G25+I25 -> 0 | K25: Savararankiškai
A26: 3 | B26: Domantas | C26: Dobrega | D26: 1999-05-03 | E26: Kaunas | F26: 7.28 | G26: 4 | H26: 23.00 | J26: =G26+I26 -> 4 | K26: A.Dobregienė, M.Vadeikis
A27: 4 | B27: Marius | C27: Kučas | D27: 2004-12-17 | E27: Kaunas | F27: 7.16 | G27: 3 | H27: 23.58 | J27: =G27+I27 -> 3 | K27: A. Skujytė
A28: 5 | B28: Domas | C28: Gailevičius | D28: 2001-12-18 | E28: Kaunas | F28: 7.09 | G28: 1 | H28: 22.81 | J28: =G28+I28 -> 1 | K28: A.Gavėnas
A29: 6 | B29: Arminas | C29: Šeštokas | D29: 2001-04-19 | E29: Alytaus m. | F29: 7.12 | G29: 2 | H29: 23.23 | J29: =G29+I29 -> 2 | K29: V. Šmidtas

Sheet S 60+200 (G)
A1: TARPTAUTINĖS VARŽYBOS ,,SPRINTO DIENA PANEVĖŽYJE"
K2: 2026-01-03
K3: Panevėžys
B4: 60+200 m. moterys
A7: Vieta | B7: Vardas | C7: Pavardė | D7: Gim. data | E7: Miestas | F7: 60m rez. | G7: Tšk. | H7: 200m rez. | I7: Tšk. | J7: Viso tšk. | K7: Treneriai
A8: 1 | B8: Augustė | C8: Karosaitė | D8: 2006-08-01 | E8: Kaunas | F8: 7.99 | G8: 2 | H8: 25.57 | I8: 1 | J8: =G8+I8 -> 3 | K8: M.Vadeikis | L8: =SUM(F8,H8) -> 33.56
A9: 2 | B9: Evelina | C9: Savickaitė | D9: 2000-04-21 | E9: Kaunas | F9: 7.79 | G9: 1 | H9: 26.19 | I9: 2 | J9: =G9+I9 -> 3 | K9: M.Vadeikis | L9: 33.98
A10: 3 | B10: Irina | C10: Pozdejeva | D10: 1998-08-28 | E10: Vilnius | F10: 8.87 | G10: 4 | H10: 29.18 | I10: 3 | J10: =G10+I10 -> 7 | K10: V.Kozlov, P.Žukienė
B11: Ernesta | C11: Karaškienė | D11: 1979-03-06 | E11: Kaunas | F11: 8.46 | G11: 3 | H11: DNS | K11: E.Karaškienė, J.Čižauskas
B13: 60+200 m. vyrai
A15: Vieta | B15: Vardas | C15: Pavardė | D15: Gim. data | E15: Miestas | F15: 60m rez. | G15: Tšk. | H15: 200m rez. | I15: Tšk. | J15: Viso tšk. | K15: Treneriai
A16: 1 | B16: Domas | C16: Gailevičius | D16: 2001-12-18 | E16: Kaunas | F16: 7.09 | G16: 1 | H16: 22.81 | I16: 1 | J16: =G16+I16 -> 2 | K16: A.Gavėnas
A17: 2 | B17: Arminas | C17: Šeštokas | D17: 2001-04-19 | E17: Alytaus m. | F17: 7.12 | G17: 2 | H17: 23.23 | I17: 3 | J17: 5 | K17: V. Šmidtas
A18: 3 | B18: Domantas | C18: Dobrega | D18: 1999-05-03 | E18: Kaunas | F18: 7.28 | G18: 4 | H18: 23.00 | I18: 2 | J18: 6 | K18: A.Dobregienė, M.Vadeikis
A19: 4 | B19: Marius | C19: Kučas | D19: 2004-12-17 | E19: Kaunas | F19: 7.16 | G19: 3 | H19: 23.58 | I19: 4 | J19: 7 | K19: A. Skujytė
A20: 5 | B20: Martynas | C20: Miliauskas | D20: 2004-07-17 | E20: Kaunas | F20: 7.29 | G20: 5 | H20: 23.90 | I20: 6 | J20: 11 | K20: E.Karaškienė
A21: 6 | B21: Artas | C21: Laučys | D21: 2005-02-28 | E21: Kaunas | F21: 7.39 | G21: 7 | H21: 23.72 | I21: 5 | J21: 12 | K21: N. Gedgaudienė
A22: 7 | B22: Renaldas | C22: Sokolovskis | D22: 1998-06-08 | E22: Kaunas | F22: 7.31 | G22: 6 | H22: 24.36 | I22: 7 | J22: 13 | K22: J.Čižauskas

Sheet J m60+300
A1: TARPTAUTINĖS VARŽYBOS ,,SPRINTO DIENA PANEVĖŽYJE"
K2: 2026-01-03
K3: Panevėžys
B4: 60+300 m. jaunimas
B6: 1 | C6: bėgimas
A7: Takas | B7: Vardas | C7: Pavardė | D7: Gim. data | E7: Miestas | F7: 60m rez. | G7: Tšk. | H7: 300m rez. | I7: Tšk. | J7: Viso tšk. | K7: Treneriai
A8: 1 | B8: Miglė | C8: Blažauskaitė | D8: 2008-04-11 | E8: Alytaus m. | F8: 9.50 | J8: =G8+I8 -> 0 | K8: V. Rasiukevičienė
A9: 2 | B9: Simona | C9: Šlapšinskaitė | D9: 2009-02-22 | E9: Vilnius | F9: 8.23 | J9: 0 | K9: R.Sausaitis
A10: 3 | B10: Anna | C10: Freiberga | D10: 2007-06-14 | E10: Ryga | F10: 8.33 | J10: 0 | K10: A.Saņņikovs
A11: 4 | B11: Rimgailė | C11: Mockevičiūtė | D11: 2008-10-12 | E11: Alytaus m. | F11: 9.26 | J11: 0 | K11: V. Rasiukevičienė
A12: 5 | B12: Karolina | C12: Kaškelytė | D12: 2007-12-31 | E12: Panevėžys | F12: 8.98 | J12: 0 | K12: A.Dobregienė
A13: 6 | B13: Edilija | C13: Rakauskaitė | D13: 2008-03-05 | E13: Alytaus m. | F13: 9.42 | J13: 0 | K13: V. Rasiukevičienė
B15: 2 | C15: bėgimas
A16: Takas | B16: Vardas | C16: Pavardė | D16: Gim. data | E16: Miestas | F16: 60m rez. | G16: Tšk. | H16: 300m rez. | I16: Tšk. | J16: Viso tšk. | K16: Treneriai
A17: 1 | J17: =G17+I17 -> 0
A18: 2 | B18: Gailė | C18: Cibulskaitė | D18: 2007-11-17 | E18: Alytaus m. | F18: 9.17 | J18: =G18+I18 -> 0 | K18: V. Rasiukevičienė
A19: 3 | B19: Eveleina | C19: Kaškelytė | D19: 2007-12-31 | E19: Panevėžys | F19: 8.98 | J19: =G19+I19 -> 0 | K19: A.Dobregienė
A20: 4 | B20: Gabija | C20: Prakapaitė | D20: 2008-04-12 | E20: Alytaus m. | F20: 8.18 | J20: =G20+I20 -> 0 | K20: V. Šmidtas
A21: 5 | B21: Ugnė | C21: Martuzaitė | D21: 2008-02-25 | E21: Panevėžys | F21: 8.16 | J21: =G21+I21 -> 0 | K21: R.Jakubauskas
A22: 6 | B22: Sandra | C22: Zymontaitė | D22: 2008-12-02 | E22: Alytaus m. | F22: 9.31 | J22: =G22+I22 -> 0 | K22: V. Rasiukevičienė
B33: 60+300 m. jaunimas
B35: 1 | C35: bėgimas
A36: Takas | B36: Vardas | C36: Pavardė | D36: Gim. data | E36: Miestas | F36: 60m rez. | G36: Tšk. | H36: 300m rez. | I36: Tšk. | J36: Viso tšk. | K36: Treneriai
A37: 1 | J37: =G37+I37 -> 0
A38: 2 | B38: Toms | C38: Ozols | D38: 2008-03-03 | E38: Ryga | F38: 7.78 | J38: =G38+I38 -> 0 | K38: A.Saņņikovs
A39: 3 | B39: Kasparas | C39: Kudzinevičius | D39: 2007-12-11 | E39: Kaunas | F39: 7.54 | J39: =G39+I39 -> 0 | K39: A. Gavėnas
A40: 4 | B40: Mikus | C40: Survillo | D40: 2008-02-04 | E40: Ryga | F40: 7.62 | J40: =G40+I40 -> 0 | K40: A.Saņņikovs
A41: 5 | B41: Aušvydas | C41: Zavistauskas | D41: 2008-04-03 | E41: Alytaus m. | F41: 7.69 | J41: =G41+I41 -> 0 | K41: V. Rasiukevičienė
A42: 6 | J42: =G42+I42 -> 0
B44: 2 | C44: bėgimas
A45: Takas | B45: Vardas | C45: Pavardė | D45: Gim. data | E45: Miestas | F45: 60m rez. | G45: Tšk. | H45: 300m rez. | I45: Tšk. | J45: Viso tšk. | K45: Treneriai
A46: 1 | J46: =G46+I46 -> 0
A47: 2 | B47: Sergejs | C47: Laskins | D47: 2007-01-03 | E47: Ryga | F47: 7.26 | J47: =G47+I47 -> 0 | K47: A.Saņņikovs
A48: 3 | B48: Matas | C48: Pašiškevičius | D48: 2008-04-21 | E48: Panevėžys | F48: 7.91 | J48: =G48+I48 -> 0 | K48: B.Šaučiūnaitė
A49: 4 | B49: Benas | C49: Zaveckas | D49: 2008-02-05 | E49: Alytaus m. | F49: 7.67 | J49: =G49+I49 -> 0 | K49: V. Šmidtas
A50: 5 | J50: =G50+I50 -> 0
A51: 6 | J51: =G51+I51 -> 0

Sheet J m60+300 (2)
A1: TARPTAUTINĖS VARŽYBOS ,,SPRINTO DIENA PANEVĖŽYJE"
K2: 2026-01-03
K3: Panevėžys
B4: 60+300 m. jaunimas
B6: 1 | C6: bėgimas
A7: Takas | B7: Vardas | C7: Pavardė | D7: Gim. data | E7: Miestas | F7: 60m rez. | G7: Tšk. | H7: 300m rez. | I7: Tšk. | J7: Viso tšk. | K7: Treneriai
A8: 1 | B8: Miglė | C8: Blažauskaitė | D8: 2008-04-11 | E8: Alytaus m. | F8: 9.50 | G8: 11 | H8: 49.91 | J8: =G8+I8 -> 11 | K8: V. Rasiukevičienė
A9: 2 | B9: Sandra | C9: Zymontaitė | D9: 2008-12-02 | E9: Alytaus m. | F9: 9.31 | G9: 9 | H9: 56.58 | J9: 9 | K9: V. Rasiukevičienė
A10: 3 | B10: Gailė | C10: Cibulskaitė | D10: 2007-11-17 | E10: Alytaus m. | F10: 9.17 | G10: 7 | H10: 51.12 | J10: 7 | K10: V. Rasiukevičienė
A11: 4 | B11: Eveleina | C11: Kaškelytė | D11: 2007-12-31 | E11: Panevėžys | F11: 8.98 | G11: 5 | H11: 45.10 | J11: 5 | K11: A.Dobregienė
A12: 5 | B12: Karolina | C12: Kaškelytė | D12: 2007-12-31 | E12: Panevėžys | F12: 8.98 | G12: 5 | H12: 45.19 | J12: 5 | K12: A.Dobregienė
A13: 6 | B13: Reda | C13: Teteriukovė | D13: 2006-08-25 | E13: Kaunas | F13: 8.60 | G13: 1 | H13: 42.42 | J13: 1 | K13: A. Gavėnas | L13: S
B15: 2 | C15: bėgimas
A16: Takas | B16: Vardas | C16: Pavardė | D16: Gim. data | E16: Miestas | F16: 60m rez. | G16: Tšk. | H16: 300m rez. | I16: Tšk. | J16: Viso tšk. | K16: Treneriai
A17: 1 | B17: Edilija | C17: Rakauskaitė | D17: 2008-03-05 | E17: Alytaus m. | F17: 9.42 | G17: 10 | H17: 51.46 | J17: =G17+I17 -> 10 | K17: V. Rasiukevičienė
A18: 2 | B18: Rimgailė | C18: Mockevičiūtė | D18: 2008-10-12 | E18: Alytaus m. | F18: 9.26 | G18: 8 | H18: 52.23 | J18: 8 | K18: V. Rasiukevičienė
A19: 3 | B19: Anna | C19: Freiberga | D19: 2007-06-14 | E19: Ryga | F19: 8.33 | G19: 4 | H19: 44.73 | J19: 4 | K19: A.Saņņikovs
A20: 4 | B20: Simona | C20: Šlapšinskaitė | D20: 2009-02-22 | E20: Vilnius | F20: 8.23 | G20: 3 | H20: 41.25 | J20: 3 | K20: R.Sausaitis
A21: 5 | B21: Ugnė | C21: Martuzaitė | D21: 2008-02-25 | E21: Panevėžys | F21: 8.16 | G21: 1 | H21: 42.22 | J21: 1 | K21: R.Jakubauskas
A22: 6 | B22: Gabija | C22: Prakapaitė | D22: 2008-04-12 | E22: Alytaus m. | F22: 8.18 | G22: 2 | H22: 43.26 | J22: 2 | K22: V. Šmidtas
B33: 60+300 m. jaunimas
B35: 1 | C35: bėgimas
A36: Takas | B36: Vardas | C36: Pavardė | D36: Gim. data | E36: Miestas | F36: 60m rez. | G36: Tšk. | H36: 300m rez. | I36: Tšk. | J36: Viso tšk. | K36: Treneriai
A37: 1 | J37: =G37+I37 -> 0
A38: 2 | J38: =G38+I38 -> 0
A39: 3 | J39: =G39+I39 -> 0
A40: 4 | B40: Matas | C40: Pašiškevičius | D40: 2008-04-21 | E40: Panevėžys | F40: 7.91 | G40: 7 | H40: 40.53 | J40: =G40+I40 -> 7 | K40: B.Šaučiūnaitė
A41: 5 | B41: Aušvydas | C41: Zavistauskas | D41: 2008-04-03 | E41: Alytaus m. | F41: 7.69 | G41: 5 | H41: 40.40 | J41: =G41+I41 -> 5 | K41: V. Rasiukevičienė
A42: 6 | B42: Toms | C42: Ozols | D42: 2008-03-03 | E42: Ryga | F42: 7.78 | G42: 6 | H42: 38.94 | J42: =G42+I42 -> 6 | K42: A.Saņņikovs
B44: 2 | C44: bėgimas
A45: Takas | B45: Vardas | C45: Pavardė | D45: Gim. data | E45: Miestas | F45: 60m rez. | G45: Tšk. | H45: 300m rez. | I45: Tšk. | J45: Viso tšk. | K45: Treneriai
A46: 1 | J46: =G46+I46 -> 0
A47: 2 | J47: =G47+I47 -> 0
A48: 3 | B48: Benas | C48: Zaveckas | D48: 2008-02-05 | E48: Alytaus m. | F48: 7.67 | G48: 4 | H48: 40.12 | J48: =G48+I48 -> 4 | K48: V. Šmidtas
A49: 4 | B49: Mikus | C49: Survillo | D49: 2008-02-04 | E49: Ryga | F49: 7.62 | G49: 3 | H49: 38.09 | J49: =G49+I49 -> 3 | K49: A.Saņņikovs
A50: 5 | B50: Sergejs | C50: Laskins | D50: 2007-01-03 | E50: Ryga | F50: 7.26 | G50: 1 | H50: 36.61 | J50: =G50+I50 -> 1 | K50: A.Saņņikovs
A51: 6 | B51: Kasparas | C51: Kudzinevičius | D51: 2007-12-11 | E51: Kaunas | F51: 7.54 | G51: 2 | H51: 37.41 | J51: =G51+I51 -> 2 | K51: A. Gavėnas

Sheet J m60+300 (G)
A1: TARPTAUTINĖS VARŽYBOS ,,SPRINTO DIENA PANEVĖŽYJE"
K2: 2026-01-03
K3: Panevėžys
B4: 60+300 m. jaunimas
A6: Vieta | B6: Vardas | C6: Pavardė | D6: Gim. data | E6: Miestas | F6: 60m rez. | G6: Tšk. | H6: 300m rez. | I6: Tšk. | J6: Viso tšk. | K6: Treneriai
A7: 1 | B7: Ugnė | C7: Martuzaitė | D7: 2008-02-25 | E7: Panevėžys | F7: 8.16 | G7: 1 | H7: 42.22 | I7: 2 | J7: =G7+I7 -> 3 | K7: R.Jakubauskas
A8: 2 | B8: Simona | C8: Šlapšinskaitė | D8: 2009-02-22 | E8: Vilnius | F8: 8.23 | G8: 3 | H8: 41.25 | I8: 1 | J8: 4 | K8: R.Sausaitis
A9: 3 | B9: Gabija | C9: Prakapaitė | D9: 2008-04-12 | E9: Alytaus m. | F9: 8.18 | G9: 2 | H9: 43.26 | I9: 3 | J9: 5 | K9: V. Šmidtas
A10: 4 | B10: Anna | C10: Freiberga | D10: 2007-06-14 | E10: Ryga | F10: 8.33 | G10: 4 | H10: 44.73 | I10: 4 | J10: 8 | K10: A.Saņņikovs
A11: 5 | B11: Eveleina | C11: Kaškelytė | D11: 2007-12-31 | E11: Panevėžys | F11: 8.98 | G11: 5 | H11: 45.10 | I11: 5 | J11: 10 | K11: A.Dobregienė
A12: 6 | B12: Karolina | C12: Kaškelytė | D12: 2007-12-31 | E12: Panevėžys | F12: 8.98 | G12: 5 | H12: 45.19 | I12: 6 | J12: 11 | K12: A.Dobregienė
A13: 7 | B13: Gailė | C13: Cibulskaitė | D13: 2007-11-17 | E13: Alytaus m. | F13: 9.17 | G13: 7 | H13: 51.12 | I13: 8 | J13: 15 | K13: V. Rasiukevičienė
A14: 8 | B14: Miglė | C14: Blažauskaitė | D14: 2008-04-11 | E14: Alytaus m. | F14: 9.50 | G14: 11 | H14: 49.91 | I14: 7 | J14: 18 | K14: V. Rasiukevičienė | L14: =SUM(F14,H14) -> 59.41
A15: 9 | B15: Rimgailė | C15: Mockevičiūtė | D15: 2008-10-12 | E15: Alytaus m. | F15: 9.26 | G15: 8 | H15: 52.23 | I15: 10 | J15: 18 | K15: V. Rasiukevičienė | L15: 61.49
A16: 10 | B16: Edilija | C16: Rakauskaitė | D16: 2008-03-05 | E16: Alytaus m. | F16: 9.42 | G16: 10 | H16: 51.46 | I16: 9 | J16: 19 | K16: V. Rasiukevičienė
A17: 11 | B17: Sandra | C17: Zymontaitė | D17: 2008-12-02 | E17: Alytaus m. | F17: 9.31 | G17: 9 | H17: 56.58 | I17: 11 | J17: 20 | K17: V. Rasiukevičienė
B21: 60+300 m. jaunimas
A23: Vieta | B23: Vardas | C23: Pavardė | D23: Gim. data | E23: Miestas | F23: 60m rez. | G23: Tšk. | H23: 300m rez. | I23: Tšk. | J23: Viso tšk. | K23: Treneriai
A24: 1 | B24: Sergejs | C24: Laskins | D24: 2007-01-03 | E24: Ryga | F24: 7.26 | G24: 1 | H24: 36.61 | I24: 1 | J24: =G24+I24 -> 2 | K24: A.Saņņikovs
A25: 2 | B25: Kasparas | C25: Kudzinevičius | D25: 2007-12-11 | E25: Kaunas | F25: 7.54 | G25: 2 | H25: 37.41 | I25: 2 | J25: 4 | K25: A. Gavėnas
A26: 3 | B26: Mikus | C26: Survillo | D26: 2008-02-04 | E26: Ryga | F26: 7.62 | G26: 3 | H26: 38.09 | I26: 3 | J26: 6 | K26: A.Saņņikovs
A27: 4 | B27: Benas | C27: Zaveckas | D27: 2008-02-05 | E27: Alytaus m. | F27: 7.67 | G27: 4 | H27: 40.12 | I27: 5 | J27: 9 | K27: V. Šmidtas
A28: 5 | B28: Toms | C28: Ozols | D28: 2008-03-03 | E28: Ryga | F28: 7.78 | G28: 6 | H28: 38.94 | I28: 4 | J28: 10 | K28: A.Saņņikovs
A29: 6 | B29: Aušvydas | C29: Zavistauskas | D29: 2008-04-03 | E29: Alytaus m. | F29: 7.69 | G29: 5 | H29: 40.40 | I29: 6 | J29: 11 | K29: V. Rasiukevičienė
A30: 7 | B30: Matas | C30: Pašiškevičius | D30: 2008-04-21 | E30: Panevėžys | F30: 7.91 | G30: 7 | H30: 40.53 | I30: 7 | J30: 14 | K30: B.Šaučiūnaitė

Sheet S 60+300
A1: TARPTAUTINĖS VARŽYBOS ,,SPRINTO DIENA PANEVĖŽYJE"
K2: 2026-01-03
K3: Panevėžys
B4: 60+300 m. moterys
B6: 1 | C6: bėgimas
A7: Takas | B7: Vardas | C7: Pavardė | D7: Gim. data | E7: Miestas | F7: 60m rez. | G7: Tšk. | H7: 300m rez. | I7: Tšk. | J7: Viso tšk. | K7: Treneriai
A8: 6 | B8: Reda | C8: Teteriukovė | D8: 2006-08-25 | E8: Kaunas | F8: 8.60 | G8: 1 | J8: =G8+I8 -> 1 | K8: A. Gavėnas
B10: 60+300 m. vyrai
B12: 1 | C12: bėgimas
A13: Takas | B13: Vardas | C13: Pavardė | D13: Gim. data | E13: Miestas | F13: 60m rez. | G13: Tšk. | H13: 300m rez. | I13: Tšk. | J13: Viso tšk. | K13: Treneriai
A14: 1 | J14: =G14+I14 -> 0
A15: 2 | B15: Arūnas | C15: Balčiūnas | D15: 1973-11-12 | E15: Panevėžys | F15: 8.35 | G15: 5 | J15: =G15+I15 -> 5 | K15: A. Balčiūnas
A16: 3 | B16: Claudius | C16: Petraitis | D16: 1994-07-01 | E16: Vilnius | F16: 7.56 | G16: 4 | J16: =G16+I16 -> 4 | K16: V.Kozlov, P.Žukienė
A17: 4 | B17: El Mehdi | C17: Raddad | D17: 2005-01-13 | E17: Panevėžys | F17: 7.15 | G17: 3 | J17: =G17+I17 -> 3 | K17: R. Smilgys
A18: 5 | B18: Irmantas | C18: Kaprašovas | D18: 1991-05-23 | E18: Vilnius | F18: 7.58 | G18: 1 | J18: =G18+I18 -> 1 | K18: V.Kozlov, P.Žukienė
A19: 6 | B19: Rimvydas | C19: Smilgys | D19: 1985-06-13 | E19: Panevėžys | F19: 7.72 | G19: 2 | J19: =G19+I19 -> 2 | K19: R. Smilgys

Sheet S 60+300 (G)
A1: TARPTAUTINĖS VARŽYBOS ,,SPRINTO DIENA PANEVĖŽYJE"
K2: 2026-01-03
K3: Panevėžys
B4: 60+300 m. moterys
A7: Vieta | B7: Vardas | C7: Pavardė | D7: Gim. data | E7: Miestas | F7: 60m rez. | G7: Tšk. | H7: 300m rez. | I7: Tšk. | J7: Viso tšk. | K7: Treneriai
A8: 1 | B8: Reda | C8: Teteriukovė | D8: 2006-08-25 | E8: Kaunas | F8: 8.60 | G8: 1 | H8: 42.42 | I8: 1 | J8: =G8+I8 -> 2 | K8: A. Gavėnas
B10: 60+300 m. vyrai
B12: 1 | C12: bėgimas
A13: Vieta | B13: Vardas | C13: Pavardė | D13: Gim. data | E13: Miestas | F13: 60m rez. | G13: Tšk. | H13: 300m rez. | I13: Tšk. | J13: Viso tšk. | K13: Treneriai
A14: 1 | B14: El Mehdi | C14: Raddad | D14: 2005-01-13 | E14: Panevėžys | F14: 7.15 | G14: 1 | H14: 35.51 | I14: 1 | J14: =G14+I14 -> 2 | K14: R. Smilgys
A15: 2 | B15: Claudius | C15: Petraitis | D15: 1994-07-01 | E15: Vilnius | F15: 7.56 | G15: 2 | H15: 37.51 | I15: 2 | J15: =G15+I15 -> 4 | K15: V.Kozlov, P.Žukienė
A16: 3 | B16: Irmantas | C16: Kaprašovas | D16: 1991-05-23 | E16: Vilnius | F16: 7.58 | G16: 3 | H16: 39.34 | I16: 3 | J16: =G16+I16 -> 6 | K16: V.Kozlov, P.Žukienė
A17: 4 | B17: Arūnas | C17: Balčiūnas | D17: 1973-11-12 | E17: Panevėžys | F17: 8.35 | G17: 5 | H17: 42.05 | I17: 4 | J17: =G17+I17 -> 9 | K17: A. Balčiūnas
B18: Rimvydas | C18: Smilgys | D18: 1985-06-13 | E18: Panevėžys | F18: 7.72 | G18: 4 | H18: DNS | K18: R. Smilgys

Sheet M 2x50m
A1: TARPTAUTINĖS VARŽYBOS ,,SPRINTO DIENA PANEVĖŽYJE"
G3: 2026-01-03
B4: 2x50 m. mergaitės | G4: Panevėžys
A6: Vieta | B6: Vardas | C6: Pavardė | D6: Gim. data | E6: Miestas | F6: Rez.
A7: 1 | B7: Kristiāna | C7: Deksne | D7: 2013-09-26 | E7: Mārupe | F7: 14.46
B8: Odrija | C8: Kristapsone | D8: 2013-06-01
A9: 2 | B9: Evija | C9: Smilgytė | D9: 2013-10-30 | E9: Panevėžys | F9: 14.53
B10: Gabrielė | C10: Lauruškaitė | D10: 2013-08-21
A11: 3 | B11: Amelija | C11: Arelytė | D11: 2014- | E11: Panevėžys-Biržai | F11: 14.60
B12: Jorūnė | C12: Kazlauskaitė | D12: 2013-07-07
A13: 4 | B13: Estere | C13: Meldrāja | D13: 2016- | E13: Jekabpils | F13: 15.27
B14: Linda | C14: Jastraboviča | D14: 2014-
A15: 5 | B15: Viltė | C15: Jurgelionytė | D15: 2014-08-01 | E15: Panevėžys | F15: 15.65
B16: Danielė | C16: Kovarskaitė | D16: 2014-04-28
A17: 6 | B17: Agnė | C17: Kiuraitė | D17: 2014-04-20 | E17: Panevėžys | F17: 16.69
B18: Eglė | C18: Kabelytė | D18: 2014-06-26
B20: 2x50 m. jaunutės
A22: Vieta | B22: Vardas | C22: Pavardė | D22: Gim. data | E22: Miestas | F22: Rez.
A23: 1 | B23: Elze | C23: Rasiulytė | D23: 2011-03-01 | E23: Panevėžys | F23: 13.56
B24: Melita | C24: Kalvaitytė | D24: 2011-04-07
A25: 2 | B25: Kate | C25: Kristapsone | D25: 2011-10-28 | E25: Mārupe | F25: 13.61
B26: Elīza | C26: Circene | D26: 2012-09-22
A27: 3 | B27: Ugnė | C27: Šteinaitė | D27: 2011-09-16 | E27: Panevėžys | F27: 13.73
B28: Meda | C28: Revotaitė | D28: 2012-04-19
A29: 4 | B29: Saulė | C29: Burškytė | D29: 2012-10-21 | E29: Panevėžys | F29: 14.27
B30: Severija | C30: Šveinauskė | D30: 2012-02-18
A31: 5 | B31: Gretė | C31: Baranauskaitė | D31: 2012-11-03 | E31: Panevėžys | F31: 14.60
B32: Ignė | C32: Balčiūnaitė | D32: 2012-11-03
A33: 6 | B33: Perlita | C33: Morkūnaitė | D33: 2012-10-05 | E33: Panevėžys | F33: 15.33
B34: Smiltė | C34: Griciutė | D34: 2012-10-07
A35: 7 | B35: Liepa | C35: Mėdziūtė | D35: 2013-02-06 | E35: Panevėžys | F35: 15.85
B36: Augustė | C36: Gaigalaitė | D36: 2012-08-15
B38: 2x50 m. jaunės
A40: Vieta | B40: Vardas | C40: Pavardė | D40: Gim. data | E40: Miestas | F40: Rez.
A41: 1 | B41: Annika | C41: Zvirbule | D41: 2010-11-30 | E41: Mārupe | F41: 13.64
B42: Felicita | C42: Ausekle | D42: 2009-09-29
A43: 2 | B43: Emilija | C43: Celiešiūtė | D43: 2010-09-28 | E43: Panevėžys | F43: 13.69
B44: Evita | C44: Vidzėnaitė | D44: 2010-11-19
A45: 3 | B45: Darija | C45: Folkmanaitė | D45: 2009-01-27 | E45: Panevėžys | F45: 14.57
B46: Aušrinė | C46: Markauskaitė | D46: 2009-01-20
B48: 2x50 m. jaunimas
A50: Vieta | B50: Vardas | C50: Pavardė | D50: Gim. data | E50: Miestas | F50: Rez.
A51: 1 | B51: Smiltė | C51: Paukštytė | D51: 2009-11-20 | E51: Panevėžys | F51: 12.75
B52: Patricija | C52: Grigalionytė | D52: 2007-08-04
A53: 2 | B53: Mėta | C53: Narbutaitė | D53: 2008-06-12 | E53: Panevėžys | F53: 13.58
B54: Karina | C54: Pazniokaitė | D54: 2008-05-28
A55: 3 | B55: Melita | C55: Visbarkaitė | D55: 2007-01-29 | E55: Panevėžys | F55: 13.72
B56: Uršulė | C56: Šveinauskė | D56: 2009-04-21
A57: 4 | B57: Eveleina | C57: Kaškelytė | D57: 2007-12-31 | E57: Panevėžys | F57: 14.27
B58: Karolina | C58: Kaškelytė | D58: 2007-12-31

Sheet B 2x50m
A1: TARPTAUTINĖS VARŽYBOS ,,SPRINTO DIENA PANEVĖŽYJE"
G3: 2026-01-03
B4: 2x50 m. berniukai | G4: Panevėžys
A6: Vieta | B6: Vardas | C6: Pavardė | D6: Gim. data | E6: Miestas | F6: Rez. .
A7: 1 | B7: Jonas | C7: Garška | D7: 2013- | E7: Panevėžys | F7: 15.78
B8: Lukas | C8: Kiela | D8: 2013-
A9: 2 | B9: Herkus | C9: Švedarauskas | D9: 2014-12-29 | E9: Panevėžys | F9: 16.20
B10: Benediktas | C10: Mateikis | D10: 2013-08-20
B12: 2x50 m. jaunučiai
A14: Vieta | B14: Vardas | C14: Pavardė | D14: Gim. data | E14: Miestas | F14: Rez.
A15: 1 | B15: Rapolas | C15: Dudėnas | D15: 2011- | E15: Panevėžys | F15: 13.04
B16: Simas | C16: Adomėnas | D16: 2012-
A17: 2 | B17: Roberts | C17: Vecmuktāns | D17: 2011- | E17: Jekabpils | F17: 13.07
B18: Kristers | C18: Piliens | D18: 2011-
B19: Rokas | C19: Janušaitis | D19: 2011- | E19: Panevėžys | F19: DNF
B20: Kristupas | C20: Slučka | D20: 2012-
B22: 2x50 m. jauniai
A24: Vieta | B24: Vardas | C24: Pavardė | D24: Gim. data | E24: Miestas | F24: Rez.
A25: 1 | B25: Aretas | C25: Gasiūnas | D25: 2009-01-26 | E25: Panevėžys | F25: 12.03
B26: Jokūbas | C26: Kaminskas | D26: 2010-12-27
A27: 2 | B27: Vakaris | C27: Paulauskas | D27: 2010-01-13 | E27: Panevėžys | F27: 13.74
B28: Gustas | C28: Masys | D28: 2011-06-17
B30: 2x50 m. jaunimas
A32: Vieta | B32: Vardas | C32: Pavardė | D32: Gim. data | E32: Miestas | F32: Rez.
A33: 1 | B33: Danielius | C33: Armokas | D33: 2011-01-02 | E33: Panevėžys | F33: 11.57
B34: Aidas | C34: Armokas | D34: 2008-04-01
A35: 2 | B35: Ugnius | C35: Janušauskas | D35: 2009-06-17 | E35: Panevėžys | F35: 11.72
B36: Arvydas | C36: Čerbauskas | D36: 2008-01-12
A37: 3 | B37: Sergejs | C37: Laskins | D37: 2007-01-03 | E37: Ryga | F37: 11.88
B38: Mikus | C38: Survillo | D38: 2008-02-04
A39: 4 | B39: Aurimas | C39: Samulionis | D39: 2007-04-21 | E39: Panevėžys-Biržai | F39: 12.01
B40: Almantas | C40: Arelis | D40: 1905-07-01
A41: 5 | B41: Jānis | C41: Ozols | D41: 2008-04-08 | E41: Mārupe | F41: 12.08
B42: Kārlis | C42: Kristapsons | D42: 2008-08-09
